BODY,BODY NAME,DATE,TRANSACTION NUMBER,THEIR REF,CATEGORY,AMOUNT,SUPPLIER NAME,SUPPLIER CODE,EXPENSE AREA,EXPENSE TYPE,EXPENSE CODE
http://statistics.data.gov.uk/id/local-authority/12UE,Huntingdonshire District Council,25/08/2016,193424,95419783,5,66.72,Air Liquide Uk Ltd,CR412121,Air Quality,Equipment,500
http://statistics.data.gov.uk/id/local-authority/12UE,Huntingdonshire District Council,25/08/2016,193424,95419783,5,620.71,Air Liquide Uk Ltd,CR412121,Air Quality,Equipment,500
http://statistics.data.gov.uk/id/local-authority/12UE,Huntingdonshire District Council,15/08/2016,193197,58382709,5,343.78,Marshall Motor Group Ltd,CR009641,Animal Welfare,Vehicle Parts & Fittings,625
http://statistics.data.gov.uk/id/local-authority/12UE,Huntingdonshire District Council,08/08/2016,193412,1-14220,5,"1,116.00",Pengelly And Mizen,CR411042,Animal Welfare,Vets,760
http://statistics.data.gov.uk/id/local-authority/12UE,Huntingdonshire District Council,18/08/2016,194214,1-14263,5,336,Pengelly And Mizen,CR411042,Animal Welfare,Vets,760
http://statistics.data.gov.uk/id/local-authority/12UE,Huntingdonshire District Council,11/08/2016,193414,2016/045,5,695.04,Primesight  Ltd,CR132710,Bus Shelters,Building Cleaning,440
http://statistics.data.gov.uk/id/local-authority/12UE,Huntingdonshire District Council,04/08/2016,193413,GFL1788HDC,5,606,G Ferrara Ltd,CR478949,Bus Shelters,Building Cleaning,440
http://statistics.data.gov.uk/id/local-authority/12UE,Huntingdonshire District Council,08/08/2016,193366,20319,5,88.8,Bh Doors & Engineering Ltd,CR455707,Bus Stations,Building Mtce,303
http://statistics.data.gov.uk/id/local-authority/12UE,Huntingdonshire District Council,04/08/2016,193398,56920,5,"1,174.99",Beebys Limited,CR415822,Bus Stations,Building Cleaning,440
http://statistics.data.gov.uk/id/local-authority/12UE,Huntingdonshire District Council,25/08/2016,193463,57057,5,409.69,Beebys Limited,CR415822,Bus Stations,Building Cleaning,440
http://statistics.data.gov.uk/id/local-authority/12UE,Huntingdonshire District Council,25/08/2016,194677,661225560,5,"1,653.98",Swalec,CR407130,Bus Stations,Electricity,420
http://statistics.data.gov.uk/id/local-authority/12UE,Huntingdonshire District Council,15/08/2016,193670,102726,5,"4,320.00",Millar West Ltd,CR004166,Call Centre,Consultants,711
http://statistics.data.gov.uk/id/local-authority/12UE,Huntingdonshire District Council,25/08/2016,194785,242095115,5,"10,710.00",Virgin Media,CR412057,Call Centre,I T Line Rental,248
http://statistics.data.gov.uk/id/local-authority/12UE,Huntingdonshire District Council,25/08/2016,193924,4237,5,547.2,Access Hire And Hydraulics,CR422526,Cctv Shared Service,Equipment Maintenance,511
http://statistics.data.gov.uk/id/local-authority/12UE,Huntingdonshire District Council,15/08/2016,192926,34341,5,705.6,Videcom Security Ltd,CR422617,Cctv Shared Service,Equipment Maintenance,511
http://statistics.data.gov.uk/id/local-authority/12UE,Huntingdonshire District Council,15/08/2016,194104,34380,5,514.8,Videcom Security Ltd,CR422617,Cctv Shared Service,Equipment Maintenance,511
http://statistics.data.gov.uk/id/local-authority/12UE,Huntingdonshire District Council,15/08/2016,194101,34381,5,"6,312.00",Videcom Security Ltd,CR422617,Cctv Shared Service,Equipment Maintenance,511
http://statistics.data.gov.uk/id/local-authority/12UE,Huntingdonshire District Council,15/08/2016,194103,34382,5,912,Videcom Security Ltd,CR422617,Cctv Shared Service,Equipment Maintenance,511
http://statistics.data.gov.uk/id/local-authority/12UE,Huntingdonshire District Council,15/08/2016,194102,34384,5,"1,703.95",Videcom Security Ltd,CR422617,Cctv Shared Service,Equipment Maintenance,511
http://statistics.data.gov.uk/id/local-authority/12UE,Huntingdonshire District Council,25/08/2016,194679,1240572646,5,60,Orange Airtime,CR455799,Cctv Shared Service,Telephone &Mobile Phonecharges,240
http://statistics.data.gov.uk/id/local-authority/12UE,Huntingdonshire District Council,25/08/2016,194805,1242802692,5,60.96,Orange Airtime,CR455799,Cctv Shared Service,Telephone &Mobile Phonecharges,240
http://statistics.data.gov.uk/id/local-authority/12UE,Huntingdonshire District Council,15/08/2016,194133,38100860/Q02817,5,256.8,British Telecommunications Plc,CR027071,Cctv Shared Service,Transmission Lines Rental,767
http://statistics.data.gov.uk/id/local-authority/12UE,Huntingdonshire District Council,04/08/2016,192264,SIN080966,5,"3,600.60",Quadrant Security Group,CR027775,Cctv Shared Service,Equipment Maintenance,511
http://statistics.data.gov.uk/id/local-authority/12UE,Huntingdonshire District Council,04/08/2016,192264,SIN080966,5,"2,840.83",Quadrant Security Group,CR027775,Cctv Shared Service,Equipment Maintenance,511
http://statistics.data.gov.uk/id/local-authority/12UE,Huntingdonshire District Council,11/08/2016,192924,SIN081010,5,"3,740.14",Quadrant Security Group,CR027775,Cctv Shared Service,Equipment Maintenance,511
http://statistics.data.gov.uk/id/local-authority/12UE,Huntingdonshire District Council,15/08/2016,193923,SIN081233,5,"3,600.60",Quadrant Security Group,CR027775,Cctv Shared Service,Equipment Maintenance,511
http://statistics.data.gov.uk/id/local-authority/12UE,Huntingdonshire District Council,15/08/2016,193923,SIN081233,5,"2,840.83",Quadrant Security Group,CR027775,Cctv Shared Service,Equipment Maintenance,511
http://statistics.data.gov.uk/id/local-authority/12UE,Huntingdonshire District Council,25/08/2016,194730,189593,5,"96,330.55",Cambridge City Council,CR017896,Central Services M Us,Client Contracts,779
http://statistics.data.gov.uk/id/local-authority/12UE,Huntingdonshire District Council,25/08/2016,194679,1240572646,5,12,Orange Airtime,CR455799,Central Services M Us,Telephone &Mobile Phonecharges,240
http://statistics.data.gov.uk/id/local-authority/12UE,Huntingdonshire District Council,25/08/2016,194805,1242802692,5,12,Orange Airtime,CR455799,Central Services M Us,Telephone &Mobile Phonecharges,240
http://statistics.data.gov.uk/id/local-authority/12UE,Huntingdonshire District Council,18/08/2016,193174,8706,5,"8,172.23",Solace In Business,CR416525,Chief Executive & Comt,Recruitment Costs,120
http://statistics.data.gov.uk/id/local-authority/12UE,Huntingdonshire District Council,25/08/2016,194134,8719,5,"4,680.00",Solace In Business,CR416525,Chief Executive & Comt,Consultants,711
http://statistics.data.gov.uk/id/local-authority/12UE,Huntingdonshire District Council,15/08/2016,193640,12583,5,339.49,Lightning Recruitment,CR028184,Chief Executive & Comt,Hired Staff,100
http://statistics.data.gov.uk/id/local-authority/12UE,Huntingdonshire District Council,25/08/2016,194730,189593,5,"18,435.10",Cambridge City Council,CR017896,Chief Executive & Comt,Contribution (Paid Out),810
http://statistics.data.gov.uk/id/local-authority/12UE,Huntingdonshire District Council,25/08/2016,193953,35664297,5,"21,228.00",Ernst & Young,CR411950,Chief Executive & Comt,Audit Fees,701
http://statistics.data.gov.uk/id/local-authority/12UE,Huntingdonshire District Council,18/08/2016,193109,01/16/HDC016,5,"6,624.00",Hester Management Services Ltd,CR422903,Chief Executive & Comt,Consultants,711
http://statistics.data.gov.uk/id/local-authority/12UE,Huntingdonshire District Council,25/08/2016,194690,DI6N20715,5,970,Lexisnexis,CR453991,Chief Executive & Comt,Books & Publications,250
http://statistics.data.gov.uk/id/local-authority/12UE,Huntingdonshire District Council,08/08/2016,193522,SOA271,5,279.44,Municipal Mutual Ltd,CR422208,Chief Executive & Comt,Ins (Service Related),260
http://statistics.data.gov.uk/id/local-authority/12UE,Huntingdonshire District Council,04/08/2016,193419,C-0002350249,5,"6,486.50",Computershare Vouchers Ltd,CR412205,Child Care Vouchers - Payroll,Deductions Paid To Third Party,26
http://statistics.data.gov.uk/id/local-authority/12UE,Huntingdonshire District Council,18/08/2016,193759,19072016,5,305.75,St James Church,CR417024,Closed Churchyards,Building Mtce,303
http://statistics.data.gov.uk/id/local-authority/12UE,Huntingdonshire District Council,18/08/2016,193759,19072016,5,305.75,St James Church,CR417024,Closed Churchyards,Building Mtce,303
http://statistics.data.gov.uk/id/local-authority/12UE,Huntingdonshire District Council,18/08/2016,193759,19072016,5,305.75,St James Church,CR417024,Closed Churchyards,Building Mtce,303
http://statistics.data.gov.uk/id/local-authority/12UE,Huntingdonshire District Council,08/08/2016,193480,776,5,"2,013.50",Hact,CR455657,Concessionary Fares,Contribution (Paid Out),810
http://statistics.data.gov.uk/id/local-authority/12UE,Huntingdonshire District Council,25/08/2016,194230,4008,5,"5,310.50",Newlyn Plc,CR409114,Council Tax,Bailiffs,703
http://statistics.data.gov.uk/id/local-authority/12UE,Huntingdonshire District Council,25/08/2016,194229,4009,5,559.06,Newlyn Plc,CR409114,Council Tax,Bailiffs,703
http://statistics.data.gov.uk/id/local-authority/12UE,Huntingdonshire District Council,25/08/2016,194673,670825,5,398.4,Callcredit Ltd,CR455548,Council Tax,Enquiries,723
http://statistics.data.gov.uk/id/local-authority/12UE,Huntingdonshire District Council,04/08/2016,189694,IN16PS16002597,5,587.69,Whistl Uk Ltd,CR479965,Council Tax,Postage,231
http://statistics.data.gov.uk/id/local-authority/12UE,Huntingdonshire District Council,15/08/2016,192580,IN16PS16003775,5,721.78,Whistl Uk Ltd,CR479965,Council Tax,Postage,231
http://statistics.data.gov.uk/id/local-authority/12UE,Huntingdonshire District Council,15/08/2016,192729,IN16PS16004031,5,664.97,Whistl Uk Ltd,CR479965,Council Tax,Postage,231
http://statistics.data.gov.uk/id/local-authority/12UE,Huntingdonshire District Council,15/08/2016,193418,IN16PS16004292,5,"2,603.91",Whistl Uk Ltd,CR479965,Council Tax,Postage,231
http://statistics.data.gov.uk/id/local-authority/12UE,Huntingdonshire District Council,15/08/2016,193751,IN16PS16004331,5,447.77,Whistl Uk Ltd,CR479965,Council Tax,Postage,231
http://statistics.data.gov.uk/id/local-authority/12UE,Huntingdonshire District Council,25/08/2016,194099,14376,5,33.48,Jade Security Services Ltd,CR422256,Countryside,Cash Collection,702
http://statistics.data.gov.uk/id/local-authority/12UE,Huntingdonshire District Council,18/08/2016,193598,70929,5,294.8,Snackline Direct Ltd,CR478090,Countryside,Catering Materials,559
http://statistics.data.gov.uk/id/local-authority/12UE,Huntingdonshire District Council,18/08/2016,193600,71027,5,292.03,Snackline Direct Ltd,CR478090,Countryside,Catering Materials,559
http://statistics.data.gov.uk/id/local-authority/12UE,Huntingdonshire District Council,15/08/2016,193583,155044,5,385.1,Huntingdon Timber Supplies,CR482513,Countryside,Materials,550
http://statistics.data.gov.uk/id/local-authority/12UE,Huntingdonshire District Council,25/08/2016,194367,551849,5,482.99,Ecocleen Services Limited,CR406985,Countryside,Building Cleaning,440
http://statistics.data.gov.uk/id/local-authority/12UE,Huntingdonshire District Council,08/08/2016,193200,670496,5,311.07,Pilgrim Foodservice Ltd,CR455695,Countryside,Catering Materials,559
http://statistics.data.gov.uk/id/local-authority/12UE,Huntingdonshire District Council,25/08/2016,193931,675851,5,456.52,Pilgrim Foodservice Ltd,CR455695,Countryside,Catering Materials,559
http://statistics.data.gov.uk/id/local-authority/12UE,Huntingdonshire District Council,25/08/2016,194146,681317,5,528.32,Pilgrim Foodservice Ltd,CR455695,Countryside,Catering Materials,559
http://statistics.data.gov.uk/id/local-authority/12UE,Huntingdonshire District Council,04/08/2016,192910,869548,5,352.56,King Bros,CR411339,Countryside,Catering Materials,559
http://statistics.data.gov.uk/id/local-authority/12UE,Huntingdonshire District Council,08/08/2016,193193,870424,5,392.02,King Bros,CR411339,Countryside,Catering Materials,559
http://statistics.data.gov.uk/id/local-authority/12UE,Huntingdonshire District Council,08/08/2016,193192,870927,5,679.2,King Bros,CR411339,Countryside,Catering Materials,559
http://statistics.data.gov.uk/id/local-authority/12UE,Huntingdonshire District Council,08/08/2016,193190,871410,5,396.43,King Bros,CR411339,Countryside,Catering Materials,559
http://statistics.data.gov.uk/id/local-authority/12UE,Huntingdonshire District Council,08/08/2016,193191,871729,5,617.9,King Bros,CR411339,Countryside,Catering Materials,559
http://statistics.data.gov.uk/id/local-authority/12UE,Huntingdonshire District Council,25/08/2016,194145,872223,5,755.63,King Bros,CR411339,Countryside,Catering Materials,559
http://statistics.data.gov.uk/id/local-authority/12UE,Huntingdonshire District Council,08/08/2016,193579,2102632175,5,441.25,Booker Cash And Carry,CR027611,Countryside,Catering Materials,559
http://statistics.data.gov.uk/id/local-authority/12UE,Huntingdonshire District Council,08/08/2016,193579,2102632175,5,17.37,Booker Cash And Carry,CR027611,Countryside,Materials,550
http://statistics.data.gov.uk/id/local-authority/12UE,Huntingdonshire District Council,25/08/2016,194891,2102655177,5,300.4,Booker Cash And Carry,CR027611,Countryside,Catering Materials,559
http://statistics.data.gov.uk/id/local-authority/12UE,Huntingdonshire District Council,11/08/2016,194042,3200139161,5,168.76,Shell Uk Ltd,CR028192,Countryside,Petrol,614
http://statistics.data.gov.uk/id/local-authority/12UE,Huntingdonshire District Council,04/08/2016,192599,INV550894,5,482.99,Ecocleen Services Limited,CR406985,Countryside,Building Cleaning,440
http://statistics.data.gov.uk/id/local-authority/12UE,Huntingdonshire District Council,04/08/2016,192420,12484,5,414.22,Lightning Recruitment,CR028184,Customer Service Centres,Hired Staff,100
http://statistics.data.gov.uk/id/local-authority/12UE,Huntingdonshire District Council,11/08/2016,194091,1027053,5,378,Q-Matic Uk Ltd,CR417152,Customer Service Centres,Stationery,225
http://statistics.data.gov.uk/id/local-authority/12UE,Huntingdonshire District Council,08/08/2016,193477,16/19,5,960,Jba Construction & Management Services,CR416716,Customer Service Centres,Building Mtce,303
http://statistics.data.gov.uk/id/local-authority/12UE,Huntingdonshire District Council,18/08/2016,193417,24420,5,320.2,B & H Digital Ltd,CR478080,Document Centre,Equipment Maintenance,511
http://statistics.data.gov.uk/id/local-authority/12UE,Huntingdonshire District Council,08/08/2016,192730,6001696,5,30.72,Antalis Ltd,CR479468,Document Centre,Paper,562
http://statistics.data.gov.uk/id/local-authority/12UE,Huntingdonshire District Council,08/08/2016,192730,6001696,5,298.2,Antalis Ltd,CR479468,Document Centre,Paper,562
http://statistics.data.gov.uk/id/local-authority/12UE,Huntingdonshire District Council,18/08/2016,193457,6034348,5,245.76,Antalis Ltd,CR479468,Document Centre,Paper,562
http://statistics.data.gov.uk/id/local-authority/12UE,Huntingdonshire District Council,18/08/2016,193457,6034348,5,584.4,Antalis Ltd,CR479468,Document Centre,Paper,562
http://statistics.data.gov.uk/id/local-authority/12UE,Huntingdonshire District Council,18/08/2016,193457,6034348,5,459.06,Antalis Ltd,CR479468,Document Centre,Paper,562
http://statistics.data.gov.uk/id/local-authority/12UE,Huntingdonshire District Council,18/08/2016,194131,9143083,5,-360,Canon Uk Ltd,CR409013,Document Centre,Equipment Maintenance,511
http://statistics.data.gov.uk/id/local-authority/12UE,Huntingdonshire District Council,04/08/2016,192581,1125546506,5,"1,570.38",Konica Minolta,CR478866,Document Centre,Equipment Maintenance,511
http://statistics.data.gov.uk/id/local-authority/12UE,Huntingdonshire District Council,08/08/2016,193027,9052561570,5,"1,340.30",Royal Mail,CR027083,Document Centre,Postage,231
http://statistics.data.gov.uk/id/local-authority/12UE,Huntingdonshire District Council,08/08/2016,193299,9052602780,5,422.81,Royal Mail,CR027083,Document Centre,Postage,231
http://statistics.data.gov.uk/id/local-authority/12UE,Huntingdonshire District Council,25/08/2016,194127,9052652474,5,805.28,Royal Mail,CR027083,Document Centre,Postage,231
http://statistics.data.gov.uk/id/local-authority/12UE,Huntingdonshire District Council,04/08/2016,189694,IN16PS16002597,5,"1,167.08",Whistl Uk Ltd,CR479965,Document Centre,Postage,231
http://statistics.data.gov.uk/id/local-authority/12UE,Huntingdonshire District Council,15/08/2016,191840,IN16PS16003652,5,"1,199.22",Whistl Uk Ltd,CR479965,Document Centre,Postage,231
http://statistics.data.gov.uk/id/local-authority/12UE,Huntingdonshire District Council,15/08/2016,192580,IN16PS16003775,5,971.13,Whistl Uk Ltd,CR479965,Document Centre,Postage,231
http://statistics.data.gov.uk/id/local-authority/12UE,Huntingdonshire District Council,15/08/2016,192729,IN16PS16004031,5,997.04,Whistl Uk Ltd,CR479965,Document Centre,Postage,231
http://statistics.data.gov.uk/id/local-authority/12UE,Huntingdonshire District Council,15/08/2016,193030,IN16PS16004032,5,"1,151.59",Whistl Uk Ltd,CR479965,Document Centre,Postage,231
http://statistics.data.gov.uk/id/local-authority/12UE,Huntingdonshire District Council,15/08/2016,193418,IN16PS16004292,5,"2,299.24",Whistl Uk Ltd,CR479965,Document Centre,Postage,231
http://statistics.data.gov.uk/id/local-authority/12UE,Huntingdonshire District Council,15/08/2016,193751,IN16PS16004331,5,"1,301.96",Whistl Uk Ltd,CR479965,Document Centre,Postage,231
http://statistics.data.gov.uk/id/local-authority/12UE,Huntingdonshire District Council,18/08/2016,194043,2061,5,"2,630.59",Change Agents Uk Trading Ltd,CR477664,Domestic Refuse,Hired Staff,100
http://statistics.data.gov.uk/id/local-authority/12UE,Huntingdonshire District Council,25/08/2016,194480,24881,5,120,M & N Vehicle Services,CR480661,Domestic Refuse,Vehicle Parts & Fittings,625
http://statistics.data.gov.uk/id/local-authority/12UE,Huntingdonshire District Council,25/08/2016,194480,24881,5,"3,424.40",M & N Vehicle Services,CR480661,Domestic Refuse,Vehicle Parts & Fittings,625
http://statistics.data.gov.uk/id/local-authority/12UE,Huntingdonshire District Council,25/08/2016,194326,24955,5,"3,797.44",M & N Vehicle Services,CR480661,Domestic Refuse,Vehicle Parts & Fittings,625
http://statistics.data.gov.uk/id/local-authority/12UE,Huntingdonshire District Council,04/08/2016,192895,34782,5,719.4,Magnum Tyres Ltd,CR479195,Domestic Refuse,Vehicle Parts & Fittings,625
http://statistics.data.gov.uk/id/local-authority/12UE,Huntingdonshire District Council,08/08/2016,193181,39754,5,"1,560.00",Clanpress King'S Lynn Ltd,CR413516,Domestic Refuse,Advertising/Promoting Services,255
http://statistics.data.gov.uk/id/local-authority/12UE,Huntingdonshire District Council,08/08/2016,192917,84326,5,279.6,Frank Ratcliffe & Son,CR007546,Domestic Refuse,Vehicle Parts & Fittings,625
http://statistics.data.gov.uk/id/local-authority/12UE,Huntingdonshire District Council,25/08/2016,194373,91611,5,"2,570.74",Bandvulc Truck Tyres,CR406810,Domestic Refuse,Tyres,630
http://statistics.data.gov.uk/id/local-authority/12UE,Huntingdonshire District Council,25/08/2016,193676,101250,5,415.44,Red Forge Ltd,CR405690,Domestic Refuse,Vehicle Parts & Fittings,625
http://statistics.data.gov.uk/id/local-authority/12UE,Huntingdonshire District Council,04/08/2016,193657,137815,5,348,Silver Shield Windscreens,CR024745,Domestic Refuse,Vehicle Parts & Fittings,625
http://statistics.data.gov.uk/id/local-authority/12UE,Huntingdonshire District Council,11/08/2016,193235,188589,5,294,Barton Petroleum,CR409205,Domestic Refuse,Vehicle Oil & Lubricants,626
http://statistics.data.gov.uk/id/local-authority/12UE,Huntingdonshire District Council,08/08/2016,193508,276392,5,273.04,Alfa Tail Lifts Ltd,CR402111,Domestic Refuse,Vehicle Parts & Fittings,625
http://statistics.data.gov.uk/id/local-authority/12UE,Huntingdonshire District Council,25/08/2016,194371,286059,5,266.76,Dennis Eagle Ltd,CR000200,Domestic Refuse,Vehicle Parts & Fittings,625
http://statistics.data.gov.uk/id/local-authority/12UE,Huntingdonshire District Council,25/08/2016,194372,286408,5,714,Dennis Eagle Ltd,CR000200,Domestic Refuse,Vehicle Parts & Fittings,625
http://statistics.data.gov.uk/id/local-authority/12UE,Huntingdonshire District Council,25/08/2016,194354,286689,5,445.4,Dennis Eagle Ltd,CR000200,Domestic Refuse,Vehicle Parts & Fittings,625
http://statistics.data.gov.uk/id/local-authority/12UE,Huntingdonshire District Council,08/08/2016,193593,352923,5,687.96,Smi Group,CR423139,Domestic Refuse,Protective Clothing & Uniforms,163
http://statistics.data.gov.uk/id/local-authority/12UE,Huntingdonshire District Council,15/08/2016,194028,357579,5,356.4,Smi Group,CR423139,Domestic Refuse,Protective Clothing & Uniforms,163
http://statistics.data.gov.uk/id/local-authority/12UE,Huntingdonshire District Council,25/08/2016,194022,10722089,5,"1,667.10",Shb Hire Ltd,CR416566,Domestic Refuse,Vehicle Hire,607
http://statistics.data.gov.uk/id/local-authority/12UE,Huntingdonshire District Council,04/08/2016,193616,96326410,5,674.49,Terberg Matec Uk Ltd,CR402183,Domestic Refuse,Vehicle Parts & Fittings,625
http://statistics.data.gov.uk/id/local-authority/12UE,Huntingdonshire District Council,04/08/2016,193617,96329119,5,665.13,Terberg Matec Uk Ltd,CR402183,Domestic Refuse,Vehicle Parts & Fittings,625
http://statistics.data.gov.uk/id/local-authority/12UE,Huntingdonshire District Council,25/08/2016,194866,96329954,5,495.34,Terberg Matec Uk Ltd,CR402183,Domestic Refuse,Vehicle Parts & Fittings,625
http://statistics.data.gov.uk/id/local-authority/12UE,Huntingdonshire District Council,04/08/2016,192806,1607/32714,5,408,Gullivers Truck Hire Ltd,CR477663,Domestic Refuse,Vehicle Hire,607
http://statistics.data.gov.uk/id/local-authority/12UE,Huntingdonshire District Council,11/08/2016,193525,1607/35617,5,408,Gullivers Truck Hire Ltd,CR477663,Domestic Refuse,Vehicle Hire,607
http://statistics.data.gov.uk/id/local-authority/12UE,Huntingdonshire District Council,18/08/2016,194075,1607/37202,5,408,Gullivers Truck Hire Ltd,CR477663,Domestic Refuse,Vehicle Hire,607
http://statistics.data.gov.uk/id/local-authority/12UE,Huntingdonshire District Council,18/08/2016,194076,1607/40078,5,408,Gullivers Truck Hire Ltd,CR477663,Domestic Refuse,Vehicle Hire,607
http://statistics.data.gov.uk/id/local-authority/12UE,Huntingdonshire District Council,18/08/2016,194377,1608/44553,5,408,Gullivers Truck Hire Ltd,CR477663,Domestic Refuse,Vehicle Hire,607
http://statistics.data.gov.uk/id/local-authority/12UE,Huntingdonshire District Council,04/08/2016,193750,72085411LC4D5,5,260,Dvla,CR033149,Domestic Refuse,Vehicle Licence,609
http://statistics.data.gov.uk/id/local-authority/12UE,Huntingdonshire District Council,04/08/2016,193492,DE10927348,5,"1,704.76",Dennis Eagle Ltd,CR000200,Domestic Refuse,Vehicle Parts & Fittings,625
http://statistics.data.gov.uk/id/local-authority/12UE,Huntingdonshire District Council,04/08/2016,193497,DE10948910,5,"1,140.11",Dennis Eagle Ltd,CR000200,Domestic Refuse,Vehicle Parts & Fittings,625
http://statistics.data.gov.uk/id/local-authority/12UE,Huntingdonshire District Council,04/08/2016,193504,DE10965507,5,683.78,Dennis Eagle Ltd,CR000200,Domestic Refuse,Vehicle Parts & Fittings,625
http://statistics.data.gov.uk/id/local-authority/12UE,Huntingdonshire District Council,11/08/2016,193502,DE10966656,5,"3,314.21",Dennis Eagle Ltd,CR000200,Domestic Refuse,Vehicle Parts & Fittings,625
http://statistics.data.gov.uk/id/local-authority/12UE,Huntingdonshire District Council,11/08/2016,193501,DE10966992,5,298.85,Dennis Eagle Ltd,CR000200,Domestic Refuse,Vehicle Parts & Fittings,625
http://statistics.data.gov.uk/id/local-authority/12UE,Huntingdonshire District Council,11/08/2016,193591,DE10966993,5,325.49,Dennis Eagle Ltd,CR000200,Domestic Refuse,Vehicle Parts & Fittings,625
http://statistics.data.gov.uk/id/local-authority/12UE,Huntingdonshire District Council,11/08/2016,193591,DE10966993,5,621.2,Dennis Eagle Ltd,CR000200,Domestic Refuse,Vehicle Parts & Fittings,625
http://statistics.data.gov.uk/id/local-authority/12UE,Huntingdonshire District Council,11/08/2016,193591,DE10966993,5,44.48,Dennis Eagle Ltd,CR000200,Domestic Refuse,Vehicle Parts & Fittings,625
http://statistics.data.gov.uk/id/local-authority/12UE,Huntingdonshire District Council,11/08/2016,193124,DE10967338,5,464.77,Dennis Eagle Ltd,CR000200,Domestic Refuse,Vehicle Parts & Fittings,625
http://statistics.data.gov.uk/id/local-authority/12UE,Huntingdonshire District Council,15/08/2016,193123,DE10967788,5,248.26,Dennis Eagle Ltd,CR000200,Domestic Refuse,Vehicle Parts & Fittings,625
http://statistics.data.gov.uk/id/local-authority/12UE,Huntingdonshire District Council,15/08/2016,193122,DE1096787,5,949.4,Dennis Eagle Ltd,CR000200,Domestic Refuse,Vehicle Parts & Fittings,625
http://statistics.data.gov.uk/id/local-authority/12UE,Huntingdonshire District Council,15/08/2016,194033,DE10970307,5,336.5,Dennis Eagle Ltd,CR000200,Domestic Refuse,Vehicle Parts & Fittings,625
http://statistics.data.gov.uk/id/local-authority/12UE,Huntingdonshire District Council,25/08/2016,194897,DE10973316,5,"1,139.82",Dennis Eagle Ltd,CR000200,Domestic Refuse,Vehicle Parts & Fittings,625
http://statistics.data.gov.uk/id/local-authority/12UE,Huntingdonshire District Council,04/08/2016,193610,IN0526330,5,"6,244.86",Staffline Group,CR416827,Domestic Refuse,Hired Staff,100
http://statistics.data.gov.uk/id/local-authority/12UE,Huntingdonshire District Council,04/08/2016,193604,IN0526331,5,"2,037.94",Staffline Group,CR416827,Domestic Refuse,Hired Staff,100
http://statistics.data.gov.uk/id/local-authority/12UE,Huntingdonshire District Council,04/08/2016,193611,IN0527732,5,"6,099.94",Staffline Group,CR416827,Domestic Refuse,Hired Staff,100
http://statistics.data.gov.uk/id/local-authority/12UE,Huntingdonshire District Council,04/08/2016,193605,IN0527733,5,"2,078.56",Staffline Group,CR416827,Domestic Refuse,Hired Staff,100
http://statistics.data.gov.uk/id/local-authority/12UE,Huntingdonshire District Council,04/08/2016,193612,IN0529951,5,"7,124.74",Staffline Group,CR416827,Domestic Refuse,Hired Staff,100
http://statistics.data.gov.uk/id/local-authority/12UE,Huntingdonshire District Council,04/08/2016,193606,IN0529952,5,"2,056.19",Staffline Group,CR416827,Domestic Refuse,Hired Staff,100
http://statistics.data.gov.uk/id/local-authority/12UE,Huntingdonshire District Council,11/08/2016,194036,IN0531541,5,"6,940.06",Staffline Group,CR416827,Domestic Refuse,Hired Staff,100
http://statistics.data.gov.uk/id/local-authority/12UE,Huntingdonshire District Council,11/08/2016,194037,IN0531542,5,"1,739.57",Staffline Group,CR416827,Domestic Refuse,Hired Staff,100
http://statistics.data.gov.uk/id/local-authority/12UE,Huntingdonshire District Council,18/08/2016,194083,IN0532861,5,"7,261.73",Staffline Group,CR416827,Domestic Refuse,Hired Staff,100
http://statistics.data.gov.uk/id/local-authority/12UE,Huntingdonshire District Council,18/08/2016,194085,IN0532862,5,"2,744.89",Staffline Group,CR416827,Domestic Refuse,Hired Staff,100
http://statistics.data.gov.uk/id/local-authority/12UE,Huntingdonshire District Council,25/08/2016,194088,IN0534548,5,"7,268.39",Staffline Group,CR416827,Domestic Refuse,Hired Staff,100
http://statistics.data.gov.uk/id/local-authority/12UE,Huntingdonshire District Council,25/08/2016,194087,IN0534549,5,"3,429.98",Staffline Group,CR416827,Domestic Refuse,Hired Staff,100
http://statistics.data.gov.uk/id/local-authority/12UE,Huntingdonshire District Council,15/08/2016,191840,IN16PS16003652,5,"1,168.72",Whistl Uk Ltd,CR479965,Domestic Refuse,Postage,231
http://statistics.data.gov.uk/id/local-authority/12UE,Huntingdonshire District Council,15/08/2016,193030,IN16PS16004032,5,623.21,Whistl Uk Ltd,CR479965,Domestic Refuse,Postage,231
http://statistics.data.gov.uk/id/local-authority/12UE,Huntingdonshire District Council,15/08/2016,193751,IN16PS16004331,5,"1,241.81",Whistl Uk Ltd,CR479965,Domestic Refuse,Postage,231
http://statistics.data.gov.uk/id/local-authority/12UE,Huntingdonshire District Council,04/08/2016,193516,SIN0613922,5,35.24,Howsafe Ltd,CR000409,Domestic Refuse,Protective Clothing & Uniforms,163
http://statistics.data.gov.uk/id/local-authority/12UE,Huntingdonshire District Council,08/08/2016,192879,3751,5,976.34,Novus Compliance Services Ltd,CR423524,E F H And Depots,Plant & Equipment Maintenance,380
http://statistics.data.gov.uk/id/local-authority/12UE,Huntingdonshire District Council,04/08/2016,193400,6660,5,816,Cambridge Door Services,CR415341,E F H And Depots,Building Mtce,303
http://statistics.data.gov.uk/id/local-authority/12UE,Huntingdonshire District Council,25/08/2016,194205,6691,5,299.52,Cambridge Door Services,CR415341,E F H And Depots,Building Mtce,303
http://statistics.data.gov.uk/id/local-authority/12UE,Huntingdonshire District Council,08/08/2016,193366,20319,5,88.8,Bh Doors & Engineering Ltd,CR455707,E F H And Depots,Building Mtce,303
http://statistics.data.gov.uk/id/local-authority/12UE,Huntingdonshire District Council,18/08/2016,194311,65924,5,"2,841.50",Haven Power Ltd,CR455940,E F H And Depots,Electricity,420
http://statistics.data.gov.uk/id/local-authority/12UE,Huntingdonshire District Council,18/08/2016,193662,532335,5,"1,512.00",Zip Heaters Uk Ltd,CR478275,E F H And Depots,Plant & Equipment Maintenance,380
http://statistics.data.gov.uk/id/local-authority/12UE,Huntingdonshire District Council,04/08/2016,193294,600009224,5,518.4,Edf Energy Customer Field Services,CR477611,E F H And Depots,Electricity,420
http://statistics.data.gov.uk/id/local-authority/12UE,Huntingdonshire District Council,15/08/2016,193926,CD200013996,5,52.45,Integrated Water Services Ltd,CR452140,E F H And Depots,Water & Sewerage,432
http://statistics.data.gov.uk/id/local-authority/12UE,Huntingdonshire District Council,08/08/2016,193369,S3081409,5,"2,325.60",First In Service Ltd,CR422285,E F H And Depots,Plant & Equipment Maintenance,380
http://statistics.data.gov.uk/id/local-authority/12UE,Huntingdonshire District Council,08/08/2016,193028,9052574359,5,"1,531.66",Royal Mail,CR027083,Elections,Postage,231
http://statistics.data.gov.uk/id/local-authority/12UE,Huntingdonshire District Council,04/08/2016,189694,IN16PS16002597,5,27.15,Whistl Uk Ltd,CR479965,Elections,Postage,231
http://statistics.data.gov.uk/id/local-authority/12UE,Huntingdonshire District Council,25/08/2016,194127,9052652474,5,257.09,Royal Mail,CR027083,Electoral Registration,Postage,231
http://statistics.data.gov.uk/id/local-authority/12UE,Huntingdonshire District Council,04/08/2016,189694,IN16PS16002597,5,256.02,Whistl Uk Ltd,CR479965,Electoral Registration,Postage,231
http://statistics.data.gov.uk/id/local-authority/12UE,Huntingdonshire District Council,15/08/2016,191840,IN16PS16003652,5,740.57,Whistl Uk Ltd,CR479965,Electoral Registration,Postage,231
http://statistics.data.gov.uk/id/local-authority/12UE,Huntingdonshire District Council,15/08/2016,192729,IN16PS16004031,5,193.39,Whistl Uk Ltd,CR479965,Electoral Registration,Postage,231
http://statistics.data.gov.uk/id/local-authority/12UE,Huntingdonshire District Council,15/08/2016,193030,IN16PS16004032,5,376.75,Whistl Uk Ltd,CR479965,Electoral Registration,Postage,231
http://statistics.data.gov.uk/id/local-authority/12UE,Huntingdonshire District Council,15/08/2016,193418,IN16PS16004292,5,104.61,Whistl Uk Ltd,CR479965,Electoral Registration,Postage,231
http://statistics.data.gov.uk/id/local-authority/12UE,Huntingdonshire District Council,15/08/2016,193751,IN16PS16004331,5,93.97,Whistl Uk Ltd,CR479965,Electoral Registration,Postage,231
http://statistics.data.gov.uk/id/local-authority/12UE,Huntingdonshire District Council,25/08/2016,194380,PR160047,5,"1,182.04",Rule & Parker Ltd,CR152340,Energy Efficiency,Sitework,359
http://statistics.data.gov.uk/id/local-authority/12UE,Huntingdonshire District Council,18/08/2016,193423,17664,5,354,Campbell Associates,CR407137,Environmental Health General,Renewals Fund Contribution,Y03
http://statistics.data.gov.uk/id/local-authority/12UE,Huntingdonshire District Council,18/08/2016,193423,17664,5,"1,272.00",Campbell Associates,CR407137,Environmental Health General,Renewals Fund Contribution,Y03
http://statistics.data.gov.uk/id/local-authority/12UE,Huntingdonshire District Council,18/08/2016,193423,17664,5,120,Campbell Associates,CR407137,Environmental Health General,Renewals Fund Contribution,Y03
http://statistics.data.gov.uk/id/local-authority/12UE,Huntingdonshire District Council,18/08/2016,193423,17664,5,30,Campbell Associates,CR407137,Environmental Health General,Renewals Fund Contribution,Y03
http://statistics.data.gov.uk/id/local-authority/12UE,Huntingdonshire District Council,25/08/2016,194679,1240572646,5,98.55,Orange Airtime,CR455799,Environmental Management,Telephone &Mobile Phonecharges,240
http://statistics.data.gov.uk/id/local-authority/12UE,Huntingdonshire District Council,25/08/2016,194805,1242802692,5,98.4,Orange Airtime,CR455799,Environmental Management,Telephone &Mobile Phonecharges,240
http://statistics.data.gov.uk/id/local-authority/12UE,Huntingdonshire District Council,25/08/2016,194882,INV06986,5,293.34,Uvenco,CR482479,Environmental Management,Service Charges,412
http://statistics.data.gov.uk/id/local-authority/12UE,Huntingdonshire District Council,25/08/2016,194883,INV07229,5,357.64,Uvenco,CR482479,Environmental Management,Service Charges,412
http://statistics.data.gov.uk/id/local-authority/12UE,Huntingdonshire District Council,25/08/2016,194884,INV07474,5,535.11,Uvenco,CR482479,Environmental Management,Service Charges,412
http://statistics.data.gov.uk/id/local-authority/12UE,Huntingdonshire District Council,25/08/2016,194884,INV07474,5,-242.7,Uvenco,CR482479,Environmental Management,Service Charges,412
http://statistics.data.gov.uk/id/local-authority/12UE,Huntingdonshire District Council,25/08/2016,194885,INV07726,5,357.64,Uvenco,CR482479,Environmental Management,Service Charges,412
http://statistics.data.gov.uk/id/local-authority/12UE,Huntingdonshire District Council,25/08/2016,194886,INV07954,5,439.17,Uvenco,CR482479,Environmental Management,Service Charges,412
http://statistics.data.gov.uk/id/local-authority/12UE,Huntingdonshire District Council,25/08/2016,194886,INV07954,5,-174.45,Uvenco,CR482479,Environmental Management,Service Charges,412
http://statistics.data.gov.uk/id/local-authority/12UE,Huntingdonshire District Council,25/08/2016,194887,INV08202,5,357.64,Uvenco,CR482479,Environmental Management,Service Charges,412
http://statistics.data.gov.uk/id/local-authority/12UE,Huntingdonshire District Council,04/08/2016,192945,12483,5,250.15,Lightning Recruitment,CR028184,Financial Services Mus,Hired Staff,100
http://statistics.data.gov.uk/id/local-authority/12UE,Huntingdonshire District Council,11/08/2016,192946,12518,5,357.36,Lightning Recruitment,CR028184,Financial Services Mus,Hired Staff,100
http://statistics.data.gov.uk/id/local-authority/12UE,Huntingdonshire District Council,15/08/2016,193403,12550,5,285.89,Lightning Recruitment,CR028184,Financial Services Mus,Hired Staff,100
http://statistics.data.gov.uk/id/local-authority/12UE,Huntingdonshire District Council,08/08/2016,192974,33600,5,924.8,Meyer Scott Recruitment Limited,CR422369,Financial Services Mus,Hired Staff,100
http://statistics.data.gov.uk/id/local-authority/12UE,Huntingdonshire District Council,08/08/2016,192973,33633,5,"1,091.83",Meyer Scott Recruitment Limited,CR422369,Financial Services Mus,Hired Staff,100
http://statistics.data.gov.uk/id/local-authority/12UE,Huntingdonshire District Council,18/08/2016,193912,33665,5,"1,205.90",Meyer Scott Recruitment Limited,CR422369,Financial Services Mus,Hired Staff,100
http://statistics.data.gov.uk/id/local-authority/12UE,Huntingdonshire District Council,18/08/2016,193911,33697,5,"1,067.39",Meyer Scott Recruitment Limited,CR422369,Financial Services Mus,Hired Staff,100
http://statistics.data.gov.uk/id/local-authority/12UE,Huntingdonshire District Council,25/08/2016,194673,670825,5,7.2,Callcredit Ltd,CR455548,Financial Services Mus,Enquiries,723
http://statistics.data.gov.uk/id/local-authority/12UE,Huntingdonshire District Council,18/08/2016,194238,1006712661,5,"4,800.00",Hays,CR423917,Financial Services Mus,Recruitment Costs,120
http://statistics.data.gov.uk/id/local-authority/12UE,Huntingdonshire District Council,25/08/2016,193458,BC00203,5,"7,410.00",Barry Cornelius Associates,CR422523,Financial Services Mus,Hired Staff,100
http://statistics.data.gov.uk/id/local-authority/12UE,Huntingdonshire District Council,25/08/2016,193458,BC00203,5,"5,400.00",Barry Cornelius Associates,CR422523,Financial Services Mus,Hired Staff,100
http://statistics.data.gov.uk/id/local-authority/12UE,Huntingdonshire District Council,02/08/2016,192750,HJSP077797,5,764.16,Public Sector Consultants,CR479754,Financial Services Mus,Interest On Late Pl Payments,46
http://statistics.data.gov.uk/id/local-authority/12UE,Huntingdonshire District Council,08/08/2016,193625,37294,5,282.91,Trinity Engineering & Component Supplies Ltd,CR455479,Fleet Management,Materials,550
http://statistics.data.gov.uk/id/local-authority/12UE,Huntingdonshire District Council,25/08/2016,194867,37370,5,995.54,Trinity Engineering & Component Supplies Ltd,CR455479,Fleet Management,Materials,550
http://statistics.data.gov.uk/id/local-authority/12UE,Huntingdonshire District Council,25/08/2016,194868,37371,5,540.7,Trinity Engineering & Component Supplies Ltd,CR455479,Fleet Management,Materials,550
http://statistics.data.gov.uk/id/local-authority/12UE,Huntingdonshire District Council,04/08/2016,192633,84308,5,349.2,Frank Ratcliffe & Son,CR007546,Fleet Management,Vehicle Parts & Fittings,625
http://statistics.data.gov.uk/id/local-authority/12UE,Huntingdonshire District Council,25/08/2016,193928,11429243,5,151.8,Murketts Of Cambridge Ltd,CR145919,Fleet Management,Vehicle Parts & Fittings,625
http://statistics.data.gov.uk/id/local-authority/12UE,Huntingdonshire District Council,25/08/2016,193928,11429243,5,151.8,Murketts Of Cambridge Ltd,CR145919,Fleet Management,Vehicle Parts & Fittings,625
http://statistics.data.gov.uk/id/local-authority/12UE,Huntingdonshire District Council,15/08/2016,193510,267190I,5,539.95,A C Commercials,CR000141,Fleet Management,Materials,550
http://statistics.data.gov.uk/id/local-authority/12UE,Huntingdonshire District Council,25/08/2016,194869,EI568482,5,846.37,United Eco Services Ltd,CR477773,Fleet Management,Materials,550
http://statistics.data.gov.uk/id/local-authority/12UE,Huntingdonshire District Council,04/08/2016,193500,SN2357563,5,381.6,Berendsen,CR478298,Fleet Management,Materials,550
http://statistics.data.gov.uk/id/local-authority/12UE,Huntingdonshire District Council,18/08/2016,194034,SN2452933,5,477,Berendsen,CR478298,Fleet Management,Materials,550
http://statistics.data.gov.uk/id/local-authority/12UE,Huntingdonshire District Council,15/08/2016,193030,IN16PS16004032,5,585.61,Whistl Uk Ltd,CR479965,Food Safety,Postage,231
http://statistics.data.gov.uk/id/local-authority/12UE,Huntingdonshire District Council,08/08/2016,192272,103,5,353.16,Arb Utility Training,CR422366,Grounds Maintenance,Equipment Maintenance,511
http://statistics.data.gov.uk/id/local-authority/12UE,Huntingdonshire District Council,15/08/2016,193245,180202,5,568,Arthur Ibbett Ltd,CR000430,Grounds Maintenance,Equipment,500
http://statistics.data.gov.uk/id/local-authority/12UE,Huntingdonshire District Council,15/08/2016,194009,180904,5,558.14,Arthur Ibbett Ltd,CR000430,Grounds Maintenance,Equipment,500
http://statistics.data.gov.uk/id/local-authority/12UE,Huntingdonshire District Council,04/08/2016,193618,340472,5,347.45,Thurlow Nunn Standen Ltd,CR001534,Grounds Maintenance,Vehicle Parts & Fittings,625
http://statistics.data.gov.uk/id/local-authority/12UE,Huntingdonshire District Council,25/08/2016,194352,784836,5,558,Ernest Doe & Sons,CR000261,Grounds Maintenance,Vehicle Parts & Fittings,625
http://statistics.data.gov.uk/id/local-authority/12UE,Huntingdonshire District Council,25/08/2016,194072,1629451,5,856,Days Contract Hire,CR417030,Grounds Maintenance,Vehicle Hire,607
http://statistics.data.gov.uk/id/local-authority/12UE,Huntingdonshire District Council,11/08/2016,194041,3200139137,5,446.85,Shell Uk Ltd,CR028192,Grounds Maintenance,Petrol,614
http://statistics.data.gov.uk/id/local-authority/12UE,Huntingdonshire District Council,11/08/2016,194042,3200139161,5,226.75,Shell Uk Ltd,CR028192,Grounds Maintenance,Diesel,615
http://statistics.data.gov.uk/id/local-authority/12UE,Huntingdonshire District Council,11/08/2016,194042,3200139161,5,85.19,Shell Uk Ltd,CR028192,Grounds Maintenance,Petrol,614
http://statistics.data.gov.uk/id/local-authority/12UE,Huntingdonshire District Council,18/08/2016,194077,4000003823,5,385.86,1st Choice Recruitment,CR416849,Grounds Maintenance,Hired Staff,100
http://statistics.data.gov.uk/id/local-authority/12UE,Huntingdonshire District Council,18/08/2016,194078,4000003848,5,490.5,1st Choice Recruitment,CR416849,Grounds Maintenance,Hired Staff,100
http://statistics.data.gov.uk/id/local-authority/12UE,Huntingdonshire District Council,18/08/2016,194363,4000003870,5,392.4,1st Choice Recruitment,CR416849,Grounds Maintenance,Hired Staff,100
http://statistics.data.gov.uk/id/local-authority/12UE,Huntingdonshire District Council,11/08/2016,193506,4/26308,5,135.91,D H M Truck & Tachograph Centr,CR032254,Grounds Maintenance,Vehicle Parts & Fittings,625
http://statistics.data.gov.uk/id/local-authority/12UE,Huntingdonshire District Council,04/08/2016,193516,SIN0613922,5,239.95,Howsafe Ltd,CR000409,Grounds Maintenance,Protective Clothing & Uniforms,163
http://statistics.data.gov.uk/id/local-authority/12UE,Huntingdonshire District Council,11/08/2016,194013,SIN0614388,5,419.92,Howsafe Ltd,CR000409,Grounds Maintenance,Protective Clothing & Uniforms,163
http://statistics.data.gov.uk/id/local-authority/12UE,Huntingdonshire District Council,25/08/2016,194725,CE004318,5,"4,627.00",Jlt Speciality Ltd,CR480345,Helpdesk,Equipment Ins/All Risks,510
http://statistics.data.gov.uk/id/local-authority/12UE,Huntingdonshire District Council,18/08/2016,194486,712,5,"-9,933.29",King Street Housing Society,CR409301,Homelessness Management,Management Charge,733
http://statistics.data.gov.uk/id/local-authority/12UE,Huntingdonshire District Council,04/08/2016,600685,8904,5,470.04,Steves Taxis & Private Hire,CR155956,Homelessness Management,Travel Expenses,636
http://statistics.data.gov.uk/id/local-authority/12UE,Huntingdonshire District Council,04/08/2016,600686,8930,5,538.38,Steves Taxis & Private Hire,CR155956,Homelessness Management,Travel Expenses,636
http://statistics.data.gov.uk/id/local-authority/12UE,Huntingdonshire District Council,18/08/2016,194495,17122,5,327.37,Bonar & Son Removals,CR407157,Homelessness Management,Removal/Storage,750
http://statistics.data.gov.uk/id/local-authority/12UE,Huntingdonshire District Council,18/08/2016,194485,19327,5,"9,933.29",King Street Housing Society,CR409301,Homelessness Management,Management Charge,733
http://statistics.data.gov.uk/id/local-authority/12UE,Huntingdonshire District Council,18/08/2016,194487,19357,5,"9,952.85",King Street Housing Society,CR409301,Homelessness Management,Management Charge,733
http://statistics.data.gov.uk/id/local-authority/12UE,Huntingdonshire District Council,04/08/2016,193668,190555,5,407.96,Cambridge City Council,CR017896,Homelessness Management,Bed & Breakfast Payment,818
http://statistics.data.gov.uk/id/local-authority/12UE,Huntingdonshire District Council,18/08/2016,194461,190803,5,407.96,Cambridge City Council,CR017896,Homelessness Management,Bed & Breakfast Payment,818
http://statistics.data.gov.uk/id/local-authority/12UE,Huntingdonshire District Council,15/08/2016,194045,29/2016,5,"1,190.00",The Station Hotel,CR453752,Homelessness Management,Bed & Breakfast Payment,818
http://statistics.data.gov.uk/id/local-authority/12UE,Huntingdonshire District Council,25/08/2016,194817,30/2016,5,"1,190.00",The Station Hotel,CR453752,Homelessness Management,Bed & Breakfast Payment,818
http://statistics.data.gov.uk/id/local-authority/12UE,Huntingdonshire District Council,08/08/2016,193667,EC032,5,"3,180.00",Ukos Projects Ltd,CR423164,Homelessness Management,Bed & Breakfast Payment,818
http://statistics.data.gov.uk/id/local-authority/12UE,Huntingdonshire District Council,15/08/2016,194047,EC033,5,"2,940.00",Ukos Projects Ltd,CR423164,Homelessness Management,Bed & Breakfast Payment,818
http://statistics.data.gov.uk/id/local-authority/12UE,Huntingdonshire District Council,18/08/2016,194460,EC034,5,"3,060.00",Ukos Projects Ltd,CR423164,Homelessness Management,Bed & Breakfast Payment,818
http://statistics.data.gov.uk/id/local-authority/12UE,Huntingdonshire District Council,25/08/2016,194853,EC035,5,"3,180.00",Ukos Projects Ltd,CR423164,Homelessness Management,Bed & Breakfast Payment,818
http://statistics.data.gov.uk/id/local-authority/12UE,Huntingdonshire District Council,04/08/2016,193698,REDACTED PERSONAL DATA,5,288,Alexanders Self Storage,CR478267,Homelessness Management,Bed & Breakfast Payment,818
http://statistics.data.gov.uk/id/local-authority/12UE,Huntingdonshire District Council,04/08/2016,193697,REDACTED PERSONAL DATA,5,288,Alexanders Self Storage,CR478267,Homelessness Management,Removal/Storage,750
http://statistics.data.gov.uk/id/local-authority/12UE,Huntingdonshire District Council,04/08/2016,193238,29782,5,954,Community Information Services Ltd,CR478148,Housing  Benefits Admin,Advertising/Promoting Services,255
http://statistics.data.gov.uk/id/local-authority/12UE,Huntingdonshire District Council,25/08/2016,194673,670825,5,25.2,Callcredit Ltd,CR455548,Housing  Benefits Admin,Enquiries,723
http://statistics.data.gov.uk/id/local-authority/12UE,Huntingdonshire District Council,08/08/2016,192707,3202193,5,435,Venn Group Recruitment,CR415403,Housing  Benefits Admin,Hired Staff,100
http://statistics.data.gov.uk/id/local-authority/12UE,Huntingdonshire District Council,08/08/2016,193040,3204554,5,"1,142.70",Venn Group Recruitment,CR415403,Housing  Benefits Admin,Hired Staff,100
http://statistics.data.gov.uk/id/local-authority/12UE,Huntingdonshire District Council,04/08/2016,189694,IN16PS16002597,5,552.19,Whistl Uk Ltd,CR479965,Housing  Benefits Admin,Postage,231
http://statistics.data.gov.uk/id/local-authority/12UE,Huntingdonshire District Council,15/08/2016,191840,IN16PS16003652,5,491.21,Whistl Uk Ltd,CR479965,Housing  Benefits Admin,Postage,231
http://statistics.data.gov.uk/id/local-authority/12UE,Huntingdonshire District Council,15/08/2016,192729,IN16PS16004031,5,423.12,Whistl Uk Ltd,CR479965,Housing  Benefits Admin,Postage,231
http://statistics.data.gov.uk/id/local-authority/12UE,Huntingdonshire District Council,15/08/2016,193418,IN16PS16004292,5,256.46,Whistl Uk Ltd,CR479965,Housing  Benefits Admin,Postage,231
http://statistics.data.gov.uk/id/local-authority/12UE,Huntingdonshire District Council,04/08/2016,193420,481291201,5,"1,345.74",Swalec,CR407130,Housing Services Other,Electricity,420
http://statistics.data.gov.uk/id/local-authority/12UE,Huntingdonshire District Council,25/08/2016,194676,481291201,5,"1,185.30",Swalec,CR407130,Housing Services Other,Electricity,420
http://statistics.data.gov.uk/id/local-authority/12UE,Huntingdonshire District Council,11/08/2016,194106,190604,5,"18,420.00",Cambridge City Council,CR017896,Housing Strategy,Contribution (Paid Out),810
http://statistics.data.gov.uk/id/local-authority/12UE,Huntingdonshire District Council,18/08/2016,194488,10686049,5,"10,400.00",Cambridgeshire County Council,CR017440,Housing Strategy,Contribution (Paid Out),810
http://statistics.data.gov.uk/id/local-authority/12UE,Huntingdonshire District Council,08/08/2016,193699,HDC 2016 - 06,5,384,Kelsall Consultancy Ltd,CR422497,Housing Strategy,Consultants,711
http://statistics.data.gov.uk/id/local-authority/12UE,Huntingdonshire District Council,04/08/2016,193419,C-0002350249,5,272.44,Computershare Vouchers Ltd,CR412205,Human Resources,Childcare Admin Vouchers,144
http://statistics.data.gov.uk/id/local-authority/12UE,Huntingdonshire District Council,15/08/2016,192925,13111,5,"3,720.00",Vivid Resourcing Limited,CR423536,Imd Shared Service,Hired Staff,100
http://statistics.data.gov.uk/id/local-authority/12UE,Huntingdonshire District Council,15/08/2016,193143,13280,5,"3,720.00",Vivid Resourcing Limited,CR423536,Imd Shared Service,Hired Staff,100
http://statistics.data.gov.uk/id/local-authority/12UE,Huntingdonshire District Council,15/08/2016,193742,13420,5,"3,720.00",Vivid Resourcing Limited,CR423536,Imd Shared Service,Hired Staff,100
http://statistics.data.gov.uk/id/local-authority/12UE,Huntingdonshire District Council,18/08/2016,194453,122209,5,"3,150.00",It Talent Solutions Ltd,CR482676,Imd Shared Service,Hired Staff,100
http://statistics.data.gov.uk/id/local-authority/12UE,Huntingdonshire District Council,18/08/2016,194454,122237,5,"1,350.00",It Talent Solutions Ltd,CR482676,Imd Shared Service,Hired Staff,100
http://statistics.data.gov.uk/id/local-authority/12UE,Huntingdonshire District Council,18/08/2016,194448,189908,5,"71,904.68",Cambridge City Council,CR017896,Imd Shared Service,Equipment Maintenance,511
http://statistics.data.gov.uk/id/local-authority/12UE,Huntingdonshire District Council,18/08/2016,194448,189908,5,"17,093.64",Cambridge City Council,CR017896,Imd Shared Service,I T Line Rental,248
http://statistics.data.gov.uk/id/local-authority/12UE,Huntingdonshire District Council,18/08/2016,194448,189908,5,"213,772.99",Cambridge City Council,CR017896,Imd Shared Service,Software,206
http://statistics.data.gov.uk/id/local-authority/12UE,Huntingdonshire District Council,18/08/2016,194448,189908,5,264.43,Cambridge City Council,CR017896,Imd Shared Service,Stationery,225
http://statistics.data.gov.uk/id/local-authority/12UE,Huntingdonshire District Council,18/08/2016,194448,189908,5,141.58,Cambridge City Council,CR017896,Imd Shared Service,Telephone &Mobile Phonecharges,240
http://statistics.data.gov.uk/id/local-authority/12UE,Huntingdonshire District Council,18/08/2016,194448,189908,5,"1,056.00",Cambridge City Council,CR017896,Imd Shared Service,Training,130
http://statistics.data.gov.uk/id/local-authority/12UE,Huntingdonshire District Council,18/08/2016,193727,189909,5,"26,595.11",Cambridge City Council,CR017896,Imd Shared Service,Equipment Maintenance,511
http://statistics.data.gov.uk/id/local-authority/12UE,Huntingdonshire District Council,18/08/2016,193727,189909,5,"26,269.78",Cambridge City Council,CR017896,Imd Shared Service,I T Line Rental,248
http://statistics.data.gov.uk/id/local-authority/12UE,Huntingdonshire District Council,18/08/2016,193727,189909,5,"166,767.52",Cambridge City Council,CR017896,Imd Shared Service,Software,206
http://statistics.data.gov.uk/id/local-authority/12UE,Huntingdonshire District Council,08/08/2016,192958,2964185,5,"1,896.00",Insight Direct Uk Ltd,CR000242,Imd Shared Service,Other I T Hardware,203
http://statistics.data.gov.uk/id/local-authority/12UE,Huntingdonshire District Council,25/08/2016,194906,7010634,5,"1,140.00",Idox,CR481134,Imd Shared Service,I C T Services,731
http://statistics.data.gov.uk/id/local-authority/12UE,Huntingdonshire District Council,18/08/2016,193172,80917558,5,267.3,Vodafone Limited,CR029120,Imd Shared Service,Telephone &Mobile Phonecharges,240
http://statistics.data.gov.uk/id/local-authority/12UE,Huntingdonshire District Council,04/08/2016,193730,87027802,5,449.78,Telefonica Uk Ltd,CR477988,Imd Shared Service,Other I T Hardware,203
http://statistics.data.gov.uk/id/local-authority/12UE,Huntingdonshire District Council,25/08/2016,194679,1240572646,5,"1,841.49",Orange Airtime,CR455799,Imd Shared Service,Telephone &Mobile Phonecharges,240
http://statistics.data.gov.uk/id/local-authority/12UE,Huntingdonshire District Council,25/08/2016,194805,1242802692,5,"1,776.88",Orange Airtime,CR455799,Imd Shared Service,Telephone &Mobile Phonecharges,240
http://statistics.data.gov.uk/id/local-authority/12UE,Huntingdonshire District Council,04/08/2016,193756,742878104/0716,5,992.17,Virgin Media Business,CR033120,Imd Shared Service,I T Line Rental,248
http://statistics.data.gov.uk/id/local-authority/12UE,Huntingdonshire District Council,04/08/2016,193756,742878104/0716,5,"1,509.54",Virgin Media Business,CR033120,Imd Shared Service,Telephone &Mobile Phonecharges,240
http://statistics.data.gov.uk/id/local-authority/12UE,Huntingdonshire District Council,25/08/2016,193652,DINV/216865,5,"100,257.00",South Cambridgeshire District Council,CR405127,Imd Shared Service,Hired Staff,100
http://statistics.data.gov.uk/id/local-authority/12UE,Huntingdonshire District Council,15/08/2016,194111,PSINV01698693,5,"2,268.00",Kelway (Uk) Ltd,CR004345,Imd Shared Service,Software,206
http://statistics.data.gov.uk/id/local-authority/12UE,Huntingdonshire District Council,08/08/2016,192920,R015492,5,720,Premier It Recruitment Ltd,CR454029,Imd Shared Service,Hired Staff,100
http://statistics.data.gov.uk/id/local-authority/12UE,Huntingdonshire District Council,08/08/2016,193745,R015702,5,720,Premier It Recruitment Ltd,CR454029,Imd Shared Service,Hired Staff,100
http://statistics.data.gov.uk/id/local-authority/12UE,Huntingdonshire District Council,08/08/2016,193734,R015888,5,489.6,Premier It Recruitment Ltd,CR454029,Imd Shared Service,Hired Staff,100
http://statistics.data.gov.uk/id/local-authority/12UE,Huntingdonshire District Council,18/08/2016,194115,R016015,5,720,Premier It Recruitment Ltd,CR454029,Imd Shared Service,Hired Staff,100
http://statistics.data.gov.uk/id/local-authority/12UE,Huntingdonshire District Council,18/08/2016,194489,R016062,5,748.8,Premier It Recruitment Ltd,CR454029,Imd Shared Service,Hired Staff,100
http://statistics.data.gov.uk/id/local-authority/12UE,Huntingdonshire District Council,04/08/2016,193141,S161706,5,"1,979.36",Chipside,CR479533,Imd Shared Service,Equipment Maintenance,511
http://statistics.data.gov.uk/id/local-authority/12UE,Huntingdonshire District Council,04/08/2016,193142,S161707,5,"2,280.00",Chipside,CR479533,Imd Shared Service,Software,206
http://statistics.data.gov.uk/id/local-authority/12UE,Huntingdonshire District Council,18/08/2016,192955,SIN100006,5,125.68,Eacs Ltd,CR404499,Imd Shared Service,Software,206
http://statistics.data.gov.uk/id/local-authority/12UE,Huntingdonshire District Council,18/08/2016,192955,SIN100006,5,499.46,Eacs Ltd,CR404499,Imd Shared Service,Software,206
http://statistics.data.gov.uk/id/local-authority/12UE,Huntingdonshire District Council,18/08/2016,192955,SIN100006,5,125.68,Eacs Ltd,CR404499,Imd Shared Service,Software,206
http://statistics.data.gov.uk/id/local-authority/12UE,Huntingdonshire District Council,25/08/2016,194108,SINV00093600,5,696,Bist,CR422733,Imd Shared Service,Equipment Maintenance,511
http://statistics.data.gov.uk/id/local-authority/12UE,Huntingdonshire District Council,25/08/2016,194107,SINV00093601,5,"1,008.00",Bist,CR422733,Imd Shared Service,Other I T Hardware,203
http://statistics.data.gov.uk/id/local-authority/12UE,Huntingdonshire District Council,25/08/2016,194774,SINV00093955,5,"2,214.50",Bist,CR422733,Imd Shared Service,Equipment Maintenance,511
http://statistics.data.gov.uk/id/local-authority/12UE,Huntingdonshire District Council,25/08/2016,194669,978004906,5,488.52,British Gas,CR416851,Industrial Properties,Gas,421
http://statistics.data.gov.uk/id/local-authority/12UE,Huntingdonshire District Council,04/08/2016,193396,5799878212,5,"2,039.57",Swalec,CR407130,Industrial Properties,Electricity,420
http://statistics.data.gov.uk/id/local-authority/12UE,Huntingdonshire District Council,25/08/2016,599447,79477994820,5,867.73,Npower Business,CR477677,Industrial Properties,Electricity,420
http://statistics.data.gov.uk/id/local-authority/12UE,Huntingdonshire District Council,25/08/2016,194725,CE004318,5,"26,985.00",Jlt Speciality Ltd,CR480345,Industrial Properties,Ins (Service Related),260
http://statistics.data.gov.uk/id/local-authority/12UE,Huntingdonshire District Council,15/08/2016,193998,JBC/28307/4663,5,933.01,J Breheny Contractors Ltd,CR000314,Industrial Properties,Building Mtce,303
http://statistics.data.gov.uk/id/local-authority/12UE,Huntingdonshire District Council,25/08/2016,194731,1645053,5,883.2,Weightmans,CR455744,Insurance Premium Holding,Insurance Employers,162
http://statistics.data.gov.uk/id/local-authority/12UE,Huntingdonshire District Council,18/08/2016,193519,19H006-0013-00G,5,"1,331.52",Zurich Municipal,CR477397,Insurance Premium Holding,Ins (Service Related),260
http://statistics.data.gov.uk/id/local-authority/12UE,Huntingdonshire District Council,25/08/2016,194728,CE004307,5,"169,725.00",Jlt Speciality Ltd,CR480345,Insurance Premium Holding,Insurance Public Liability,160
http://statistics.data.gov.uk/id/local-authority/12UE,Huntingdonshire District Council,25/08/2016,194726,CE004308,5,"6,843.75",Jlt Speciality Ltd,CR480345,Insurance Premium Holding,Insurance Fidelity Guarantee,166
http://statistics.data.gov.uk/id/local-authority/12UE,Huntingdonshire District Council,25/08/2016,194722,CE004309,5,"6,570.00",Jlt Speciality Ltd,CR480345,Insurance Premium Holding,Insurance Officials Indemnity,168
http://statistics.data.gov.uk/id/local-authority/12UE,Huntingdonshire District Council,25/08/2016,194727,CE004317,5,"5,475.00",Jlt Speciality Ltd,CR480345,Insurance Premium Holding,Insurance Public Liability,160
http://statistics.data.gov.uk/id/local-authority/12UE,Huntingdonshire District Council,25/08/2016,194725,CE004318,5,"49,838.79",Jlt Speciality Ltd,CR480345,Insurance Premium Holding,Building Insurance,414
http://statistics.data.gov.uk/id/local-authority/12UE,Huntingdonshire District Council,18/08/2016,193520,E119H006-0017,5,"19,531.32",Zurich Municipal,CR477397,Insurance Premium Holding,Ins (Service Related),260
http://statistics.data.gov.uk/id/local-authority/12UE,Huntingdonshire District Council,08/08/2016,193108,HDC001,5,"5,000.00",Gallagher Basset International Ltd,CR423576,Insurance Premium Holding,Insurance Excess,797
http://statistics.data.gov.uk/id/local-authority/12UE,Huntingdonshire District Council,25/08/2016,194099,14376,5,351.54,Jade Security Services Ltd,CR422256,Interest Received,Cash Collection,702
http://statistics.data.gov.uk/id/local-authority/12UE,Huntingdonshire District Council,04/08/2016,193425,10686880,5,"16,468.00",Cambridgeshire County Council,CR006678,Land Charges,Other Office Expenses,295
http://statistics.data.gov.uk/id/local-authority/12UE,Huntingdonshire District Council,25/08/2016,194722,CE004309,5,"3,285.00",Jlt Speciality Ltd,CR480345,Land Charges,Ins (Service Related),260
http://statistics.data.gov.uk/id/local-authority/12UE,Huntingdonshire District Council,18/08/2016,194500,11618,5,"6,522.00",Barnet Pool Maintenance Ltd,CR412070,Leisure Centres Capital,Plant & Equipment Maintenance,380
http://statistics.data.gov.uk/id/local-authority/12UE,Huntingdonshire District Council,25/08/2016,193760,3960,5,"2,710.00",Adams Autos,CR422066,Licences,Vehicle Inspection,618
http://statistics.data.gov.uk/id/local-authority/12UE,Huntingdonshire District Council,11/08/2016,192826,A2016.110,5,"1,020.00",James Button & Co,CR405456,Licences,Legal Fees,729
http://statistics.data.gov.uk/id/local-authority/12UE,Huntingdonshire District Council,18/08/2016,193431,T26334,5,"1,521.60",Mogo Uk,CR410378,Licences,Licence Plates,564
http://statistics.data.gov.uk/id/local-authority/12UE,Huntingdonshire District Council,18/08/2016,193431,T26334,5,23.88,Mogo Uk,CR410378,Licences,Postage,231
http://statistics.data.gov.uk/id/local-authority/12UE,Huntingdonshire District Council,04/08/2016,193359,22471,5,300,B. S. Graves Electrical Ltd,CR000363,Markets,Building Mtce,303
http://statistics.data.gov.uk/id/local-authority/12UE,Huntingdonshire District Council,04/08/2016,193283,22473,5,816.72,B. S. Graves Electrical Ltd,CR000363,Markets,Equipment Maintenance,511
http://statistics.data.gov.uk/id/local-authority/12UE,Huntingdonshire District Council,18/08/2016,194208,,5,490,Information Commissioner,CR404972,Member Allowances & Support,Registration Fee,748
http://statistics.data.gov.uk/id/local-authority/12UE,Huntingdonshire District Council,18/08/2016,193659,900749777,5,807.04,Portakabin Ltd,CR478566,Miscellaneous Grants,Grants (Paid Out),800
http://statistics.data.gov.uk/id/local-authority/12UE,Huntingdonshire District Council,18/08/2016,194435,8100065486,5,"2,168.40",Uk Power Networks,CR403938,Miscellaneous Grants,Sitework,359
http://statistics.data.gov.uk/id/local-authority/12UE,Huntingdonshire District Council,08/08/2016,193426,GRANT,5,"5,000.00",St Ives Amateur Music & Drama Society,CR423907,Miscellaneous Grants,Grants (Paid Out),800
http://statistics.data.gov.uk/id/local-authority/12UE,Huntingdonshire District Council,18/08/2016,193105,GRANT,4,900,New Saints 2015 Amateur Boxing Club,CR423385,Miscellaneous Grants,Grants (Paid Out),800
http://statistics.data.gov.uk/id/local-authority/12UE,Huntingdonshire District Council,04/08/2016,600651,GRANT,6,"5,000.00",Hpc Ms Therapy Centre,CR122554,Miscellaneous Grants,Grants (Paid Out),800
http://statistics.data.gov.uk/id/local-authority/12UE,Huntingdonshire District Council,04/08/2016,600655,GRANT,4,"2,000.00",West Anglia Crossroads Caring For Carers,CR423901,Miscellaneous Grants,Grants (Paid Out),800
http://statistics.data.gov.uk/id/local-authority/12UE,Huntingdonshire District Council,04/08/2016,600680,GRANT,4,"2,000.00",Godmanchester Rovers Fc,CR423912,Miscellaneous Grants,Grants (Paid Out),800
http://statistics.data.gov.uk/id/local-authority/12UE,Huntingdonshire District Council,04/08/2016,600652,GRANT,4,"1,750.00",Medway Christian Fellowship,CR423902,Miscellaneous Grants,Grants (Paid Out),800
http://statistics.data.gov.uk/id/local-authority/12UE,Huntingdonshire District Council,04/08/2016,600653,GRANT,5,"1,500.00",Somersham Town Band,CR025796,Miscellaneous Grants,Grants (Paid Out),800
http://statistics.data.gov.uk/id/local-authority/12UE,Huntingdonshire District Council,04/08/2016,600778,GRANT,4,475,Barneys After School Club And Holiday Club,CR423919,Miscellaneous Grants,Grants (Paid Out),800
http://statistics.data.gov.uk/id/local-authority/12UE,Huntingdonshire District Council,18/08/2016,600417,GRANT 2016/17,6,"5,000.00",Huntingdon Community Action Projects,CR423163,Miscellaneous Grants,Grants (Paid Out),800
http://statistics.data.gov.uk/id/local-authority/12UE,Huntingdonshire District Council,18/08/2016,600416,GRANT 2016/17,6,515,Offord Village Hall,CR406073,Miscellaneous Grants,Grants (Paid Out),800
http://statistics.data.gov.uk/id/local-authority/12UE,Huntingdonshire District Council,04/08/2016,600682,GRANTS,4,"5,000.00",Great Paxton Community Shop,CR423909,Miscellaneous Grants,Grants (Paid Out),800
http://statistics.data.gov.uk/id/local-authority/12UE,Huntingdonshire District Council,04/08/2016,600656,GRANTS,4,"3,000.00",Cambridgeshire Police Shrievality Trust,CR423905,Miscellaneous Grants,Grants (Paid Out),800
http://statistics.data.gov.uk/id/local-authority/12UE,Huntingdonshire District Council,04/08/2016,600657,GRANTS,4,"2,500.00",St Ives Carnival And Music Festival,CR423904,Miscellaneous Grants,Grants (Paid Out),800
http://statistics.data.gov.uk/id/local-authority/12UE,Huntingdonshire District Council,04/08/2016,600683,GRANTS,4,"1,000.00",Ramsey & District Day Centre,CR411975,Miscellaneous Grants,Grants (Paid Out),800
http://statistics.data.gov.uk/id/local-authority/12UE,Huntingdonshire District Council,25/08/2016,600658,GRANTS,4,500,Cope,CR423903,Miscellaneous Grants,Grants (Paid Out),800
http://statistics.data.gov.uk/id/local-authority/12UE,Huntingdonshire District Council,25/08/2016,194211,4010,5,"1,169.07",Newlyn Plc,CR409114,N N D R Administration,Bailiffs,703
http://statistics.data.gov.uk/id/local-authority/12UE,Huntingdonshire District Council,25/08/2016,194808,3167,5,"5,184.00",The Information Lab,CR423551,Network Services,Software,206
http://statistics.data.gov.uk/id/local-authority/12UE,Huntingdonshire District Council,25/08/2016,194807,3277,5,"4,454.88",The Information Lab,CR423551,Network Services,Consultants,711
http://statistics.data.gov.uk/id/local-authority/12UE,Huntingdonshire District Council,25/08/2016,194809,3279,5,"2,921.40",The Information Lab,CR423551,Network Services,Consultants,711
http://statistics.data.gov.uk/id/local-authority/12UE,Huntingdonshire District Council,08/08/2016,192877,6947,5,"1,632.00",Lattenbury Services,CR406847,Off Street Parking,Plant & Equipment Maintenance,380
http://statistics.data.gov.uk/id/local-authority/12UE,Huntingdonshire District Council,25/08/2016,194852,14303,5,"4,623.84",Jade Security Services Ltd,CR422256,Off Street Parking,Cash Collection,702
http://statistics.data.gov.uk/id/local-authority/12UE,Huntingdonshire District Council,08/08/2016,193366,20319,5,150,Bh Doors & Engineering Ltd,CR455707,Off Street Parking,Plant & Equipment Maintenance,380
http://statistics.data.gov.uk/id/local-authority/12UE,Huntingdonshire District Council,08/08/2016,193367,20329,5,948.54,Bh Doors & Engineering Ltd,CR455707,Off Street Parking,Building Mtce,303
http://statistics.data.gov.uk/id/local-authority/12UE,Huntingdonshire District Council,25/08/2016,194893,115793,5,"3,610.33",Cale Briparc Ltd,CR401137,Off Street Parking,Car Park Machines,522
http://statistics.data.gov.uk/id/local-authority/12UE,Huntingdonshire District Council,04/08/2016,193514,551131,5,412.24,Ecocleen Services Limited,CR406985,Off Street Parking,Building Cleaning,440
http://statistics.data.gov.uk/id/local-authority/12UE,Huntingdonshire District Council,18/08/2016,194000,91226466,5,262.61,Swalec,CR407130,Off Street Parking,Electricity,420
http://statistics.data.gov.uk/id/local-authority/12UE,Huntingdonshire District Council,25/08/2016,194778,S161549,5,311.21,Chipside,CR479533,Off Street Parking,Other I T Hardware,203
http://statistics.data.gov.uk/id/local-authority/12UE,Huntingdonshire District Council,25/08/2016,194879,WAITROSE,5,"83,530.00",Waitrose,CR019599,Off Street Parking,Contribution (Paid Out),810
http://statistics.data.gov.uk/id/local-authority/12UE,Huntingdonshire District Council,25/08/2016,194880,WAITROSE,5,"42,610.00",Waitrose,CR019599,Off Street Parking,Contribution (Paid Out),810
http://statistics.data.gov.uk/id/local-authority/12UE,Huntingdonshire District Council,18/08/2016,194392,146,5,104.52,Huntingdon Gymnastics Club,CR478042,One Leisure Active Lifestyles,Hire Of Rooms,411
http://statistics.data.gov.uk/id/local-authority/12UE,Huntingdonshire District Council,18/08/2016,194392,146,5,522.63,Huntingdon Gymnastics Club,CR478042,One Leisure Active Lifestyles,Instructors/Tutors,720
http://statistics.data.gov.uk/id/local-authority/12UE,Huntingdonshire District Council,04/08/2016,192952,17990,5,"1,000.00",Swan Print Ltd,CR413699,One Leisure Active Lifestyles,Printing (External),220
http://statistics.data.gov.uk/id/local-authority/12UE,Huntingdonshire District Council,25/08/2016,194560,0021/2016,5,289,Get Inspired Golf Ltd,CR412288,One Leisure Active Lifestyles,Instructors/Tutors,720
http://statistics.data.gov.uk/id/local-authority/12UE,Huntingdonshire District Council,18/08/2016,194463,160724/R1,5,250,A1 Audio Visual Events,CR423937,One Leisure Active Lifestyles,Subcontractors,777
http://statistics.data.gov.uk/id/local-authority/12UE,Huntingdonshire District Council,25/08/2016,194559,16TH AUG 2016,5,400,Southlake Ski School,CR422517,One Leisure Active Lifestyles,Instructors/Tutors,720
http://statistics.data.gov.uk/id/local-authority/12UE,Huntingdonshire District Council,25/08/2016,194402,GW16074F,5,465,Grafham Water Centre,CR416894,One Leisure Active Lifestyles,Instructors/Tutors,720
http://statistics.data.gov.uk/id/local-authority/12UE,Huntingdonshire District Council,11/08/2016,194050,1316,5,302.4,Huntingdon Live Magazine,CR478621,One Leisure Corporate Mgt,Advertising/Promoting Services,255
http://statistics.data.gov.uk/id/local-authority/12UE,Huntingdonshire District Council,08/08/2016,192422,39712,5,533,Clanpress King'S Lynn Ltd,CR413516,One Leisure Corporate Mgt,Printing (External),220
http://statistics.data.gov.uk/id/local-authority/12UE,Huntingdonshire District Council,25/08/2016,194818,75729,5,"8,202.48",Gladstone Mrm,CR405717,One Leisure Corporate Mgt,Software,206
http://statistics.data.gov.uk/id/local-authority/12UE,Huntingdonshire District Council,08/08/2016,192130,153578,5,121.2,Lead Forensics,CR423143,One Leisure Corporate Mgt,Advertising/Promoting Services,255
http://statistics.data.gov.uk/id/local-authority/12UE,Huntingdonshire District Council,08/08/2016,193228,SINV00099465,5,"1,584.00",Exterion Media Uk Ltd,CR422758,One Leisure Corporate Mgt,Advertising/Promoting Services,255
http://statistics.data.gov.uk/id/local-authority/12UE,Huntingdonshire District Council,08/08/2016,193228,SINV00099465,5,464.4,Exterion Media Uk Ltd,CR422758,One Leisure Corporate Mgt,Printing (External),220
http://statistics.data.gov.uk/id/local-authority/12UE,Huntingdonshire District Council,08/08/2016,192878,3752,5,327.8,Novus Compliance Services Ltd,CR423524,One Leisure Huntingdon,Plant & Equipment Maintenance,380
http://statistics.data.gov.uk/id/local-authority/12UE,Huntingdonshire District Council,04/08/2016,193087,9627,5,441.53,Roger Wilson Electronics,CR028041,One Leisure Huntingdon,Building Mtce,303
http://statistics.data.gov.uk/id/local-authority/12UE,Huntingdonshire District Council,25/08/2016,194443,11579,5,420,House Of Play Ltd,CR479346,One Leisure Huntingdon,Building Mtce,303
http://statistics.data.gov.uk/id/local-authority/12UE,Huntingdonshire District Council,25/08/2016,194099,14376,5,267.84,Jade Security Services Ltd,CR422256,One Leisure Huntingdon,Cash Collection,702
http://statistics.data.gov.uk/id/local-authority/12UE,Huntingdonshire District Council,04/08/2016,192953,17989,5,890,Swan Print Ltd,CR413699,One Leisure Huntingdon,Printing (External),220
http://statistics.data.gov.uk/id/local-authority/12UE,Huntingdonshire District Council,04/08/2016,193276,39104,5,530.4,Hytrac Lifts Ltd,CR030618,One Leisure Huntingdon,Plant & Equipment Maintenance,380
http://statistics.data.gov.uk/id/local-authority/12UE,Huntingdonshire District Council,08/08/2016,193710,43994,5,582,Coffee Solutions,CR480375,One Leisure Huntingdon,Equipment Hire,507
http://statistics.data.gov.uk/id/local-authority/12UE,Huntingdonshire District Council,18/08/2016,194312,65916,5,"4,674.49",Haven Power Ltd,CR455940,One Leisure Huntingdon,Electricity,420
http://statistics.data.gov.uk/id/local-authority/12UE,Huntingdonshire District Council,18/08/2016,194312,65916,5,150,Haven Power Ltd,CR455940,One Leisure Huntingdon,Electricity,420
http://statistics.data.gov.uk/id/local-authority/12UE,Huntingdonshire District Council,18/08/2016,194300,70247,5,856.02,Snackline Direct Ltd,CR478090,One Leisure Huntingdon,Vending Materials,560
http://statistics.data.gov.uk/id/local-authority/12UE,Huntingdonshire District Council,04/08/2016,193753,70516,5,147.97,Snackline Direct Ltd,CR478090,One Leisure Huntingdon,Bar Provisions,558
http://statistics.data.gov.uk/id/local-authority/12UE,Huntingdonshire District Council,04/08/2016,193753,70516,5,142.5,Snackline Direct Ltd,CR478090,One Leisure Huntingdon,Confectionery,572
http://statistics.data.gov.uk/id/local-authority/12UE,Huntingdonshire District Council,18/08/2016,194301,70758,5,411.4,Snackline Direct Ltd,CR478090,One Leisure Huntingdon,Vending Materials,560
http://statistics.data.gov.uk/id/local-authority/12UE,Huntingdonshire District Council,11/08/2016,192791,79432,5,384,Jsa Leisure Ltd,CR40187,One Leisure Huntingdon,Plant & Equipment Maintenance,380
http://statistics.data.gov.uk/id/local-authority/12UE,Huntingdonshire District Council,25/08/2016,193941,85371,5,"1,280.70",Servicesport (Uk) Ltd,CR422867,One Leisure Huntingdon,Equipment Maintenance,511
http://statistics.data.gov.uk/id/local-authority/12UE,Huntingdonshire District Council,08/08/2016,192130,153578,5,120,Lead Forensics,CR423143,One Leisure Huntingdon,Advertising/Promoting Services,255
http://statistics.data.gov.uk/id/local-authority/12UE,Huntingdonshire District Council,08/08/2016,193037,812874,5,489.35,J P Lennard Ltd,CR028595,One Leisure Huntingdon,Equipment,500
http://statistics.data.gov.uk/id/local-authority/12UE,Huntingdonshire District Council,25/08/2016,193705,3082915,5,"2,460.00",First In Service Ltd,CR422285,One Leisure Huntingdon,Plant & Equipment Maintenance,380
http://statistics.data.gov.uk/id/local-authority/12UE,Huntingdonshire District Council,18/08/2016,194236,381239505,5,963.57,Swalec,CR407130,One Leisure Huntingdon,Electricity,420
http://statistics.data.gov.uk/id/local-authority/12UE,Huntingdonshire District Council,25/08/2016,194127,9052652474,5,473.88,Royal Mail,CR027083,One Leisure Huntingdon,Postage,231
http://statistics.data.gov.uk/id/local-authority/12UE,Huntingdonshire District Council,18/08/2016,194368,12489088110,5,"2,943.43",E-On Energy,CR416430,One Leisure Huntingdon,Gas,421
http://statistics.data.gov.uk/id/local-authority/12UE,Huntingdonshire District Council,18/08/2016,194244,12489088970,5,392.27,E-On Energy,CR416430,One Leisure Huntingdon,Gas,421
http://statistics.data.gov.uk/id/local-authority/12UE,Huntingdonshire District Council,25/08/2016,194400,16TH AUG 2016,5,460,Lui The Plumber,CR422379,One Leisure Huntingdon,Building Mtce,303
http://statistics.data.gov.uk/id/local-authority/12UE,Huntingdonshire District Council,04/08/2016,193274,38SI 3828001,5,820.74,Brenntag Uk Ltd,CR015017,One Leisure Huntingdon,Chemicals,551
http://statistics.data.gov.uk/id/local-authority/12UE,Huntingdonshire District Council,08/08/2016,193227,678/ONE,5,86.4,Term Times,CR423394,One Leisure Huntingdon,Advertising/Promoting Services,255
http://statistics.data.gov.uk/id/local-authority/12UE,Huntingdonshire District Council,04/08/2016,193176,BD857175,5,41,Purchase Power,CR033202,One Leisure Huntingdon,Postage,231
http://statistics.data.gov.uk/id/local-authority/12UE,Huntingdonshire District Council,15/08/2016,193077,I33338 TO 30/6,5,"1,500.00",Zurich Municipal,CR003638,One Leisure Huntingdon,Insurance Excess,797
http://statistics.data.gov.uk/id/local-authority/12UE,Huntingdonshire District Council,18/08/2016,194317,IN17424,5,"2,179.20",Airquee Ltd,CR416900,One Leisure Huntingdon,Sports Equipment,524
http://statistics.data.gov.uk/id/local-authority/12UE,Huntingdonshire District Council,18/08/2016,194318,IN17715,5,"1,592.40",Airquee Ltd,CR416900,One Leisure Huntingdon,Sports Equipment,524
http://statistics.data.gov.uk/id/local-authority/12UE,Huntingdonshire District Council,25/08/2016,193394,S3081402,5,"1,185.60",First In Service Ltd,CR422285,One Leisure Huntingdon,Plant & Equipment Maintenance,380
http://statistics.data.gov.uk/id/local-authority/12UE,Huntingdonshire District Council,25/08/2016,193551,SBO1044154,5,260.23,Veolia Es Uk Ltd,CR478889,One Leisure Huntingdon,Waste Disposal,763
http://statistics.data.gov.uk/id/local-authority/12UE,Huntingdonshire District Council,25/08/2016,194099,14376,5,66.96,Jade Security Services Ltd,CR422256,One Leisure Ramsey,Cash Collection,702
http://statistics.data.gov.uk/id/local-authority/12UE,Huntingdonshire District Council,04/08/2016,192953,17989,5,800,Swan Print Ltd,CR413699,One Leisure Ramsey,Printing (External),220
http://statistics.data.gov.uk/id/local-authority/12UE,Huntingdonshire District Council,18/08/2016,194391,70809,5,575.3,Snackline Direct Ltd,CR478090,One Leisure Ramsey,Vending Materials,560
http://statistics.data.gov.uk/id/local-authority/12UE,Huntingdonshire District Council,25/08/2016,193938,85372,5,691.52,Servicesport (Uk) Ltd,CR422867,One Leisure Ramsey,Equipment Maintenance,511
http://statistics.data.gov.uk/id/local-authority/12UE,Huntingdonshire District Council,08/08/2016,192130,153578,5,60,Lead Forensics,CR423143,One Leisure Ramsey,Advertising/Promoting Services,255
http://statistics.data.gov.uk/id/local-authority/12UE,Huntingdonshire District Council,25/08/2016,192705,190237,5,120,Gb Group Plc,CR455456,One Leisure Ramsey,Software,206
http://statistics.data.gov.uk/id/local-authority/12UE,Huntingdonshire District Council,15/08/2016,192784,426177,5,497.88,Heasell Electromechanical Services Ltd,CR422407,One Leisure Ramsey,Plant & Equipment Maintenance,380
http://statistics.data.gov.uk/id/local-authority/12UE,Huntingdonshire District Council,15/08/2016,192782,426178,5,"1,153.92",Heasell Electromechanical Services Ltd,CR422407,One Leisure Ramsey,Plant & Equipment Maintenance,380
http://statistics.data.gov.uk/id/local-authority/12UE,Huntingdonshire District Council,18/08/2016,194060,8887305,5,"1,129.62",Rotowash Uk Ltd,CR400863,One Leisure Ramsey,Equipment Maintenance,511
http://statistics.data.gov.uk/id/local-authority/12UE,Huntingdonshire District Council,15/08/2016,193045,16008127,5,"3,411.43",Technogym Uk Ltd,CR033037,One Leisure Ramsey,Equipment Maintenance,511
http://statistics.data.gov.uk/id/local-authority/12UE,Huntingdonshire District Council,18/08/2016,193091,92356386,5,752.21,Speedo International Limited,CR41427,One Leisure Ramsey,Materials For Resale,570
http://statistics.data.gov.uk/id/local-authority/12UE,Huntingdonshire District Council,25/08/2016,194674,341225796,5,"3,070.74",Swalec,CR407130,One Leisure Ramsey,Electricity,420
http://statistics.data.gov.uk/id/local-authority/12UE,Huntingdonshire District Council,25/08/2016,194127,9052652474,5,275.71,Royal Mail,CR027083,One Leisure Ramsey,Postage,231
http://statistics.data.gov.uk/id/local-authority/12UE,Huntingdonshire District Council,18/08/2016,194241,12489090790,5,853.15,E-On Energy,CR416430,One Leisure Ramsey,Gas,421
http://statistics.data.gov.uk/id/local-authority/12UE,Huntingdonshire District Council,08/08/2016,193227,678/ONE,5,86.4,Term Times,CR423394,One Leisure Ramsey,Advertising/Promoting Services,255
http://statistics.data.gov.uk/id/local-authority/12UE,Huntingdonshire District Council,04/08/2016,193176,BD857175,5,21.4,Purchase Power,CR033202,One Leisure Ramsey,Postage,231
http://statistics.data.gov.uk/id/local-authority/12UE,Huntingdonshire District Council,25/08/2016,194007,S3084118,5,254.63,First In Service Ltd,CR422285,One Leisure Ramsey,Building Mtce,303
http://statistics.data.gov.uk/id/local-authority/12UE,Huntingdonshire District Council,08/08/2016,192943,SI351486-1,5,990,Rlss Uk Enterprises Ltd - Lifesavers Direct,CR401615,One Leisure Ramsey,Equipment,500
http://statistics.data.gov.uk/id/local-authority/12UE,Huntingdonshire District Council,25/08/2016,194099,14376,5,66.96,Jade Security Services Ltd,CR422256,One Leisure Sawtry,Cash Collection,702
http://statistics.data.gov.uk/id/local-authority/12UE,Huntingdonshire District Council,04/08/2016,192953,17989,5,800,Swan Print Ltd,CR413699,One Leisure Sawtry,Printing (External),220
http://statistics.data.gov.uk/id/local-authority/12UE,Huntingdonshire District Council,25/08/2016,194836,20072,5,476.4,Bh Doors & Engineering Ltd,CR455707,One Leisure Sawtry,Building Mtce,303
http://statistics.data.gov.uk/id/local-authority/12UE,Huntingdonshire District Council,25/08/2016,194829,59638,5,752.4,Nemco Utilities Ltd,CR409319,One Leisure Sawtry,Plant & Equipment Maintenance,380
http://statistics.data.gov.uk/id/local-authority/12UE,Huntingdonshire District Council,25/08/2016,194698,70812,5,534.24,Snackline Direct Ltd,CR478090,One Leisure Sawtry,Vending Materials,560
http://statistics.data.gov.uk/id/local-authority/12UE,Huntingdonshire District Council,25/08/2016,193939,85373,5,633.31,Servicesport (Uk) Ltd,CR422867,One Leisure Sawtry,Equipment Maintenance,511
http://statistics.data.gov.uk/id/local-authority/12UE,Huntingdonshire District Council,08/08/2016,192130,153578,5,60,Lead Forensics,CR423143,One Leisure Sawtry,Advertising/Promoting Services,255
http://statistics.data.gov.uk/id/local-authority/12UE,Huntingdonshire District Council,15/08/2016,194024,159849,5,256.9,Chemaide Limited,CR416597,One Leisure Sawtry,Cleaning Materials,443
http://statistics.data.gov.uk/id/local-authority/12UE,Huntingdonshire District Council,25/08/2016,192705,190237,5,120,Gb Group Plc,CR455456,One Leisure Sawtry,Software,206
http://statistics.data.gov.uk/id/local-authority/12UE,Huntingdonshire District Council,25/08/2016,193707,3083408,5,984,First In Service Ltd,CR422285,One Leisure Sawtry,Plant & Equipment Maintenance,380
http://statistics.data.gov.uk/id/local-authority/12UE,Huntingdonshire District Council,15/08/2016,193184,16008230,5,"1,843.19",Technogym Uk Ltd,CR033037,One Leisure Sawtry,Equipment Maintenance,511
http://statistics.data.gov.uk/id/local-authority/12UE,Huntingdonshire District Council,18/08/2016,193090,92356410,5,437.47,Speedo International Limited,CR41427,One Leisure Sawtry,Materials For Resale,570
http://statistics.data.gov.uk/id/local-authority/12UE,Huntingdonshire District Council,25/08/2016,194846,101179000,5,"1,734.20",Anglian Water,CR000071,One Leisure Sawtry,Water & Sewerage,432
http://statistics.data.gov.uk/id/local-authority/12UE,Huntingdonshire District Council,25/08/2016,194845,126877703,5,"1,161.05",Anglian Water,CR000071,One Leisure Sawtry,Water & Sewerage,432
http://statistics.data.gov.uk/id/local-authority/12UE,Huntingdonshire District Council,25/08/2016,194668,941240466,5,"3,851.02",Swalec,CR407130,One Leisure Sawtry,Electricity,420
http://statistics.data.gov.uk/id/local-authority/12UE,Huntingdonshire District Council,25/08/2016,194127,9052652474,5,275.28,Royal Mail,CR027083,One Leisure Sawtry,Postage,231
http://statistics.data.gov.uk/id/local-authority/12UE,Huntingdonshire District Council,18/08/2016,194245,12489088700,5,828.2,E-On Energy,CR416430,One Leisure Sawtry,Gas,421
http://statistics.data.gov.uk/id/local-authority/12UE,Huntingdonshire District Council,08/08/2016,193227,678/ONE,5,86.4,Term Times,CR423394,One Leisure Sawtry,Advertising/Promoting Services,255
http://statistics.data.gov.uk/id/local-authority/12UE,Huntingdonshire District Council,04/08/2016,193176,BD857175,5,14.6,Purchase Power,CR033202,One Leisure Sawtry,Postage,231
http://statistics.data.gov.uk/id/local-authority/12UE,Huntingdonshire District Council,08/08/2016,192943,SI351486-1,5,990,Rlss Uk Enterprises Ltd - Lifesavers Direct,CR401615,One Leisure Sawtry,Equipment,500
http://statistics.data.gov.uk/id/local-authority/12UE,Huntingdonshire District Council,08/08/2016,192786,7,5,385,Richard Sistrom Painting & Decorating,CR422887,One Leisure St Ives,Building Mtce,303
http://statistics.data.gov.uk/id/local-authority/12UE,Huntingdonshire District Council,08/08/2016,192787,8,5,282,Richard Sistrom Painting & Decorating,CR422887,One Leisure St Ives,Building Mtce,303
http://statistics.data.gov.uk/id/local-authority/12UE,Huntingdonshire District Council,04/08/2016,192810,3666,5,608.79,Endersby Awards,CR413209,One Leisure St Ives,Materials,550
http://statistics.data.gov.uk/id/local-authority/12UE,Huntingdonshire District Council,08/08/2016,192889,3748,5,500.56,Novus Compliance Services Ltd,CR423524,One Leisure St Ives,Plant & Equipment Maintenance,380
http://statistics.data.gov.uk/id/local-authority/12UE,Huntingdonshire District Council,11/08/2016,194054,9606,5,346.8,Border Studio,CR402068,One Leisure St Ives,Materials,550
http://statistics.data.gov.uk/id/local-authority/12UE,Huntingdonshire District Council,04/08/2016,193086,9626,5,"1,277.11",Roger Wilson Electronics,CR028041,One Leisure St Ives,Building Mtce,303
http://statistics.data.gov.uk/id/local-authority/12UE,Huntingdonshire District Council,15/08/2016,194084,9641,5,668.12,Roger Wilson Electronics,CR028041,One Leisure St Ives,Building Mtce,303
http://statistics.data.gov.uk/id/local-authority/12UE,Huntingdonshire District Council,25/08/2016,194431,9643,5,301.2,Roger Wilson Electronics,CR028041,One Leisure St Ives,Building Mtce,303
http://statistics.data.gov.uk/id/local-authority/12UE,Huntingdonshire District Council,25/08/2016,194099,14376,5,234.36,Jade Security Services Ltd,CR422256,One Leisure St Ives,Cash Collection,702
http://statistics.data.gov.uk/id/local-authority/12UE,Huntingdonshire District Council,15/08/2016,193036,17981,5,546,Warboys Services Ltd,CR000841,One Leisure St Ives,Building Mtce,303
http://statistics.data.gov.uk/id/local-authority/12UE,Huntingdonshire District Council,04/08/2016,192953,17989,5,"1,246.00",Swan Print Ltd,CR413699,One Leisure St Ives,Printing (External),220
http://statistics.data.gov.uk/id/local-authority/12UE,Huntingdonshire District Council,04/08/2016,192952,17990,5,74,Swan Print Ltd,CR413699,One Leisure St Ives,Printing (External),220
http://statistics.data.gov.uk/id/local-authority/12UE,Huntingdonshire District Council,18/08/2016,194053,20382,5,324,Bh Doors & Engineering Ltd,CR455707,One Leisure St Ives,Building Mtce,303
http://statistics.data.gov.uk/id/local-authority/12UE,Huntingdonshire District Council,25/08/2016,194733,20456,5,555.05,Bh Doors & Engineering Ltd,CR455707,One Leisure St Ives,Building Mtce,303
http://statistics.data.gov.uk/id/local-authority/12UE,Huntingdonshire District Council,08/08/2016,192941,36277,5,"1,242.00",Caterfix Ltd,CR480775,One Leisure St Ives,Building Mtce,303
http://statistics.data.gov.uk/id/local-authority/12UE,Huntingdonshire District Council,18/08/2016,194309,65919,5,"9,697.03",Haven Power Ltd,CR455940,One Leisure St Ives,Electricity,420
http://statistics.data.gov.uk/id/local-authority/12UE,Huntingdonshire District Council,18/08/2016,194309,65919,5,150,Haven Power Ltd,CR455940,One Leisure St Ives,Electricity,420
http://statistics.data.gov.uk/id/local-authority/12UE,Huntingdonshire District Council,18/08/2016,194308,65922,5,"1,730.35",Haven Power Ltd,CR455940,One Leisure St Ives,Electricity,420
http://statistics.data.gov.uk/id/local-authority/12UE,Huntingdonshire District Council,18/08/2016,194308,65922,5,150,Haven Power Ltd,CR455940,One Leisure St Ives,Electricity,420
http://statistics.data.gov.uk/id/local-authority/12UE,Huntingdonshire District Council,25/08/2016,194696,70520,5,314.57,Snackline Direct Ltd,CR478090,One Leisure St Ives,Vending Materials,560
http://statistics.data.gov.uk/id/local-authority/12UE,Huntingdonshire District Council,25/08/2016,194695,70762,5,301.5,Snackline Direct Ltd,CR478090,One Leisure St Ives,Vending Materials,560
http://statistics.data.gov.uk/id/local-authority/12UE,Huntingdonshire District Council,25/08/2016,194697,71015,5,278.87,Snackline Direct Ltd,CR478090,One Leisure St Ives,Vending Materials,560
http://statistics.data.gov.uk/id/local-authority/12UE,Huntingdonshire District Council,11/08/2016,192791,79432,5,600,Jsa Leisure Ltd,CR40187,One Leisure St Ives,Plant & Equipment Maintenance,380
http://statistics.data.gov.uk/id/local-authority/12UE,Huntingdonshire District Council,25/08/2016,193521,79475,5,329.4,Jsa Leisure Ltd,CR40187,One Leisure St Ives,Plant & Equipment Maintenance,380
http://statistics.data.gov.uk/id/local-authority/12UE,Huntingdonshire District Council,25/08/2016,193940,85374,5,"2,068.80",Servicesport (Uk) Ltd,CR422867,One Leisure St Ives,Equipment Maintenance,511
http://statistics.data.gov.uk/id/local-authority/12UE,Huntingdonshire District Council,08/08/2016,192130,153578,5,120,Lead Forensics,CR423143,One Leisure St Ives,Advertising/Promoting Services,255
http://statistics.data.gov.uk/id/local-authority/12UE,Huntingdonshire District Council,15/08/2016,194021,160207,5,255.03,Chemaide Limited,CR416597,One Leisure St Ives,Cleaning Materials,443
http://statistics.data.gov.uk/id/local-authority/12UE,Huntingdonshire District Council,25/08/2016,192705,190237,5,240,Gb Group Plc,CR455456,One Leisure St Ives,Software,206
http://statistics.data.gov.uk/id/local-authority/12UE,Huntingdonshire District Council,15/08/2016,193970,277145,5,113.69,Westminster Foodservice,CR455156,One Leisure St Ives,Bar Provisions,558
http://statistics.data.gov.uk/id/local-authority/12UE,Huntingdonshire District Council,15/08/2016,193970,277145,5,149.78,Westminster Foodservice,CR455156,One Leisure St Ives,Catering Materials,559
http://statistics.data.gov.uk/id/local-authority/12UE,Huntingdonshire District Council,04/08/2016,193136,349668,5,4.18,South Lincs Food Service,CR033415,One Leisure St Ives,Bar Provisions,558
http://statistics.data.gov.uk/id/local-authority/12UE,Huntingdonshire District Council,04/08/2016,193136,349668,5,91.68,South Lincs Food Service,CR033415,One Leisure St Ives,Catering Materials,559
http://statistics.data.gov.uk/id/local-authority/12UE,Huntingdonshire District Council,04/08/2016,193136,349668,5,45.57,South Lincs Food Service,CR033415,One Leisure St Ives,Confectionery,572
http://statistics.data.gov.uk/id/local-authority/12UE,Huntingdonshire District Council,04/08/2016,193136,349668,5,267.81,South Lincs Food Service,CR033415,One Leisure St Ives,Materials,550
http://statistics.data.gov.uk/id/local-authority/12UE,Huntingdonshire District Council,08/08/2016,193135,351587,5,163.82,South Lincs Food Service,CR033415,One Leisure St Ives,Catering Materials,559
http://statistics.data.gov.uk/id/local-authority/12UE,Huntingdonshire District Council,08/08/2016,193135,351587,5,10.75,South Lincs Food Service,CR033415,One Leisure St Ives,Confectionery,572
http://statistics.data.gov.uk/id/local-authority/12UE,Huntingdonshire District Council,08/08/2016,193135,351587,5,7.88,South Lincs Food Service,CR033415,One Leisure St Ives,Materials,550
http://statistics.data.gov.uk/id/local-authority/12UE,Huntingdonshire District Council,08/08/2016,193135,351587,5,134.93,South Lincs Food Service,CR033415,One Leisure St Ives,Materials,550
http://statistics.data.gov.uk/id/local-authority/12UE,Huntingdonshire District Council,08/08/2016,193079,357044,5,29.98,South Lincs Food Service,CR033415,One Leisure St Ives,Bar Provisions,558
http://statistics.data.gov.uk/id/local-authority/12UE,Huntingdonshire District Council,08/08/2016,193079,357044,5,224.55,South Lincs Food Service,CR033415,One Leisure St Ives,Catering Materials,559
http://statistics.data.gov.uk/id/local-authority/12UE,Huntingdonshire District Council,08/08/2016,193079,357044,5,11.66,South Lincs Food Service,CR033415,One Leisure St Ives,Cleaning Materials,443
http://statistics.data.gov.uk/id/local-authority/12UE,Huntingdonshire District Council,08/08/2016,193079,357044,5,1,South Lincs Food Service,CR033415,One Leisure St Ives,Materials,550
http://statistics.data.gov.uk/id/local-authority/12UE,Huntingdonshire District Council,08/08/2016,193416,620685,5,491.57,Lacons,CR422174,One Leisure St Ives,Bar Provisions,558
http://statistics.data.gov.uk/id/local-authority/12UE,Huntingdonshire District Council,08/08/2016,193416,620685,5,93.49,Lacons,CR422174,One Leisure St Ives,Gas Cylinders (Incl. Bars),567
http://statistics.data.gov.uk/id/local-authority/12UE,Huntingdonshire District Council,25/08/2016,193494,620925,5,470.69,Lacons,CR422174,One Leisure St Ives,Bar Provisions,558
http://statistics.data.gov.uk/id/local-authority/12UE,Huntingdonshire District Council,25/08/2016,193494,620925,5,37.04,Lacons,CR422174,One Leisure St Ives,Gas Cylinders (Incl. Bars),567
http://statistics.data.gov.uk/id/local-authority/12UE,Huntingdonshire District Council,25/08/2016,193989,622196,5,261.97,Lacons,CR422174,One Leisure St Ives,Bar Provisions,558
http://statistics.data.gov.uk/id/local-authority/12UE,Huntingdonshire District Council,25/08/2016,194440,622980,5,522.43,Lacons,CR422174,One Leisure St Ives,Bar Provisions,558
http://statistics.data.gov.uk/id/local-authority/12UE,Huntingdonshire District Council,25/08/2016,194440,622980,5,18.23,Lacons,CR422174,One Leisure St Ives,Gas Cylinders (Incl. Bars),567
http://statistics.data.gov.uk/id/local-authority/12UE,Huntingdonshire District Council,25/08/2016,194759,624550,5,269.9,Lacons,CR422174,One Leisure St Ives,Bar Provisions,558
http://statistics.data.gov.uk/id/local-authority/12UE,Huntingdonshire District Council,25/08/2016,194759,624550,5,18.82,Lacons,CR422174,One Leisure St Ives,Gas Cylinders (Incl. Bars),567
http://statistics.data.gov.uk/id/local-authority/12UE,Huntingdonshire District Council,18/08/2016,193544,747904,5,370.75,Ben Burgess & Company,CR453903,One Leisure St Ives,Vehicle Maintenance External,619
http://statistics.data.gov.uk/id/local-authority/12UE,Huntingdonshire District Council,04/08/2016,193097,778534,5,"2,336.40",Rotowash Uk Ltd,CR400863,One Leisure St Ives,Equipment,500
http://statistics.data.gov.uk/id/local-authority/12UE,Huntingdonshire District Council,18/08/2016,193094,915124,5,"1,083.71",Ben Burgess & Company,CR453903,One Leisure St Ives,Vehicle Maintenance External,619
http://statistics.data.gov.uk/id/local-authority/12UE,Huntingdonshire District Council,25/08/2016,193704,3083293,5,984,First In Service Ltd,CR422285,One Leisure St Ives,Plant & Equipment Maintenance,380
http://statistics.data.gov.uk/id/local-authority/12UE,Huntingdonshire District Council,18/08/2016,194233,4925238,5,"2,934.98",Performing Right Society,CR033495,One Leisure St Ives,Licences,730
http://statistics.data.gov.uk/id/local-authority/12UE,Huntingdonshire District Council,25/08/2016,193972,6755848,5,116.62,Pilgrim Foodservice Ltd,CR455695,One Leisure St Ives,Bar Provisions,558
http://statistics.data.gov.uk/id/local-authority/12UE,Huntingdonshire District Council,25/08/2016,193972,6755848,5,141.02,Pilgrim Foodservice Ltd,CR455695,One Leisure St Ives,Catering Materials,559
http://statistics.data.gov.uk/id/local-authority/12UE,Huntingdonshire District Council,25/08/2016,193972,6755848,5,57.31,Pilgrim Foodservice Ltd,CR455695,One Leisure St Ives,Confectionery,572
http://statistics.data.gov.uk/id/local-authority/12UE,Huntingdonshire District Council,04/08/2016,192315,92342481,5,387.7,Speedo International Limited,CR41427,One Leisure St Ives,Materials For Resale,570
http://statistics.data.gov.uk/id/local-authority/12UE,Huntingdonshire District Council,08/08/2016,193025,2102622546,5,267.64,Booker Cash And Carry,CR027611,One Leisure St Ives,Bar Provisions,558
http://statistics.data.gov.uk/id/local-authority/12UE,Huntingdonshire District Council,11/08/2016,193963,2102632349,5,141.38,Booker Cash And Carry,CR027611,One Leisure St Ives,Bar Provisions,558
http://statistics.data.gov.uk/id/local-authority/12UE,Huntingdonshire District Council,11/08/2016,193963,2102632349,5,34.93,Booker Cash And Carry,CR027611,One Leisure St Ives,Catering Materials,559
http://statistics.data.gov.uk/id/local-authority/12UE,Huntingdonshire District Council,11/08/2016,193963,2102632349,5,92.62,Booker Cash And Carry,CR027611,One Leisure St Ives,Materials,550
http://statistics.data.gov.uk/id/local-authority/12UE,Huntingdonshire District Council,08/08/2016,193271,2102633435,5,404.46,Booker Cash And Carry,CR027611,One Leisure St Ives,Bar Provisions,558
http://statistics.data.gov.uk/id/local-authority/12UE,Huntingdonshire District Council,08/08/2016,193271,2102633435,5,106.47,Booker Cash And Carry,CR027611,One Leisure St Ives,Catering Materials,559
http://statistics.data.gov.uk/id/local-authority/12UE,Huntingdonshire District Council,08/08/2016,193271,2102633435,5,40.64,Booker Cash And Carry,CR027611,One Leisure St Ives,Confectionery,572
http://statistics.data.gov.uk/id/local-authority/12UE,Huntingdonshire District Council,08/08/2016,193271,2102633435,5,79.4,Booker Cash And Carry,CR027611,One Leisure St Ives,Materials,550
http://statistics.data.gov.uk/id/local-authority/12UE,Huntingdonshire District Council,25/08/2016,194127,9052652474,5,473.88,Royal Mail,CR027083,One Leisure St Ives,Postage,231
http://statistics.data.gov.uk/id/local-authority/12UE,Huntingdonshire District Council,18/08/2016,194450,12489089510,5,301.81,E-On Energy,CR416430,One Leisure St Ives,Gas,421
http://statistics.data.gov.uk/id/local-authority/12UE,Huntingdonshire District Council,18/08/2016,194240,12489090950,5,"3,293.36",E-On Energy,CR416430,One Leisure St Ives,Gas,421
http://statistics.data.gov.uk/id/local-authority/12UE,Huntingdonshire District Council,25/08/2016,193733,0010269047/9010,5,277.76,Lucozade Ribena Suntory Ltd,CR422660,One Leisure St Ives,Vending Materials,560
http://statistics.data.gov.uk/id/local-authority/12UE,Huntingdonshire District Council,25/08/2016,194747,03110ST.I,5,576,Leisure Innovations Limited,CR422869,One Leisure St Ives,Equipment Maintenance,511
http://statistics.data.gov.uk/id/local-authority/12UE,Huntingdonshire District Council,08/08/2016,192931,19TH JULY 2016,5,445,Lui The Plumber,CR422379,One Leisure St Ives,Building Mtce,303
http://statistics.data.gov.uk/id/local-authority/12UE,Huntingdonshire District Council,15/08/2016,193268,38SI 3829433,5,"1,299.92",Brenntag Uk Ltd,CR015017,One Leisure St Ives,Chemicals,551
http://statistics.data.gov.uk/id/local-authority/12UE,Huntingdonshire District Council,08/08/2016,193227,678/ONE,5,86.4,Term Times,CR423394,One Leisure St Ives,Advertising/Promoting Services,255
http://statistics.data.gov.uk/id/local-authority/12UE,Huntingdonshire District Council,04/08/2016,193176,BD857175,5,390.2,Purchase Power,CR033202,One Leisure St Ives,Postage,231
http://statistics.data.gov.uk/id/local-authority/12UE,Huntingdonshire District Council,02/08/2016,193042,BFH-16-707,5,295,Bands For Hire Ltd,CR422441,One Leisure St Ives,Entertainments Inc Cable Tv,744
http://statistics.data.gov.uk/id/local-authority/12UE,Huntingdonshire District Council,04/08/2016,193098,CD970036445,5,781.54,Omega Red Group,CR411029,One Leisure St Ives,Building Mtce,303
http://statistics.data.gov.uk/id/local-authority/12UE,Huntingdonshire District Council,11/08/2016,193095,CD970382420,5,388.92,Sherriff Amenity Services,CR416316,One Leisure St Ives,Grounds Mtce Contractors,351
http://statistics.data.gov.uk/id/local-authority/12UE,Huntingdonshire District Council,11/08/2016,193096,CD970382918,5,280.8,Sherriff Amenity Services,CR416316,One Leisure St Ives,Grounds Mtce Contractors,351
http://statistics.data.gov.uk/id/local-authority/12UE,Huntingdonshire District Council,08/08/2016,193493,INV001545,5,"1,250.00",Lynx Bowling Services,CR455532,One Leisure St Ives,Equipment Maintenance,511
http://statistics.data.gov.uk/id/local-authority/12UE,Huntingdonshire District Council,08/08/2016,193493,INV001545,5,672,Lynx Bowling Services,CR455532,One Leisure St Ives,Plant & Equipment Maintenance,380
http://statistics.data.gov.uk/id/local-authority/12UE,Huntingdonshire District Council,08/08/2016,192321,INV050960,5,553.32,Slush Puppie Ltd,CR455958,One Leisure St Ives,Bar Provisions,558
http://statistics.data.gov.uk/id/local-authority/12UE,Huntingdonshire District Council,08/08/2016,192321,INV050960,5,115.62,Slush Puppie Ltd,CR455958,One Leisure St Ives,Materials,550
http://statistics.data.gov.uk/id/local-authority/12UE,Huntingdonshire District Council,18/08/2016,193269,INV053506,5,368.88,Slush Puppie Ltd,CR455958,One Leisure St Ives,Catering Materials,559
http://statistics.data.gov.uk/id/local-authority/12UE,Huntingdonshire District Council,18/08/2016,193269,INV053506,5,105.21,Slush Puppie Ltd,CR455958,One Leisure St Ives,Materials,550
http://statistics.data.gov.uk/id/local-authority/12UE,Huntingdonshire District Council,18/08/2016,193523,INV054001,5,461.1,Slush Puppie Ltd,CR455958,One Leisure St Ives,Catering Materials,559
http://statistics.data.gov.uk/id/local-authority/12UE,Huntingdonshire District Council,18/08/2016,193523,INV054001,5,255.52,Slush Puppie Ltd,CR455958,One Leisure St Ives,Materials,550
http://statistics.data.gov.uk/id/local-authority/12UE,Huntingdonshire District Council,15/08/2016,194234,PO27130,5,"1,544.78",Starlite Roadshow,CR024127,One Leisure St Ives,Entertainments Inc Cable Tv,744
http://statistics.data.gov.uk/id/local-authority/12UE,Huntingdonshire District Council,25/08/2016,193556,SBO1044156,5,767.52,Veolia Es Uk Ltd,CR478889,One Leisure St Ives,Waste Disposal,763
http://statistics.data.gov.uk/id/local-authority/12UE,Huntingdonshire District Council,08/08/2016,192943,SI351486-1,5,990,Rlss Uk Enterprises Ltd - Lifesavers Direct,CR401615,One Leisure St Ives,Equipment,500
http://statistics.data.gov.uk/id/local-authority/12UE,Huntingdonshire District Council,04/08/2016,192057,SIV128745,5,297.54,Les Mills Uk,CR025826,One Leisure St Ives,Licences,730
http://statistics.data.gov.uk/id/local-authority/12UE,Huntingdonshire District Council,15/08/2016,193746,SIV131271,5,297.54,Les Mills Uk,CR025826,One Leisure St Ives,Licences,730
http://statistics.data.gov.uk/id/local-authority/12UE,Huntingdonshire District Council,08/08/2016,193530,,5,450,Kiernan Theatre Academy,CR455676,One Leisure St Ives,Entertainments Inc Cable Tv,744
http://statistics.data.gov.uk/id/local-authority/12UE,Huntingdonshire District Council,15/08/2016,194084,9641,5,650.87,Roger Wilson Electronics,CR028041,One Leisure St Neots,Equipment,500
http://statistics.data.gov.uk/id/local-authority/12UE,Huntingdonshire District Council,25/08/2016,194099,14376,5,435.24,Jade Security Services Ltd,CR422256,One Leisure St Neots,Cash Collection,702
http://statistics.data.gov.uk/id/local-authority/12UE,Huntingdonshire District Council,04/08/2016,192953,17989,5,920,Swan Print Ltd,CR413699,One Leisure St Neots,Printing (External),220
http://statistics.data.gov.uk/id/local-authority/12UE,Huntingdonshire District Council,25/08/2016,194501,20395,5,264,Bh Doors & Engineering Ltd,CR455707,One Leisure St Neots,Building Mtce,303
http://statistics.data.gov.uk/id/local-authority/12UE,Huntingdonshire District Council,04/08/2016,192327,56214,5,364.49,Maskearaid Ind Supplies,CR033423,One Leisure St Neots,Cleaning Materials,443
http://statistics.data.gov.uk/id/local-authority/12UE,Huntingdonshire District Council,18/08/2016,193178,56347,5,465.41,Maskearaid Ind Supplies,CR033423,One Leisure St Neots,Cleaning Materials,443
http://statistics.data.gov.uk/id/local-authority/12UE,Huntingdonshire District Council,18/08/2016,194310,65914,5,"9,944.06",Haven Power Ltd,CR455940,One Leisure St Neots,Electricity,420
http://statistics.data.gov.uk/id/local-authority/12UE,Huntingdonshire District Council,18/08/2016,194310,65914,5,150,Haven Power Ltd,CR455940,One Leisure St Neots,Electricity,420
http://statistics.data.gov.uk/id/local-authority/12UE,Huntingdonshire District Council,25/08/2016,194794,70137,5,389.15,Snackline Direct Ltd,CR478090,One Leisure St Neots,Vending Materials,560
http://statistics.data.gov.uk/id/local-authority/12UE,Huntingdonshire District Council,18/08/2016,193255,70996,5,670.15,Snackline Direct Ltd,CR478090,One Leisure St Neots,Vending Materials,560
http://statistics.data.gov.uk/id/local-authority/12UE,Huntingdonshire District Council,04/08/2016,192789,79431,5,710.96,Jsa Leisure Ltd,CR40187,One Leisure St Neots,Plant & Equipment Maintenance,380
http://statistics.data.gov.uk/id/local-authority/12UE,Huntingdonshire District Council,11/08/2016,192791,79432,5,660,Jsa Leisure Ltd,CR40187,One Leisure St Neots,Plant & Equipment Maintenance,380
http://statistics.data.gov.uk/id/local-authority/12UE,Huntingdonshire District Council,25/08/2016,193937,85375,5,"2,206.63",Servicesport (Uk) Ltd,CR422867,One Leisure St Neots,Equipment Maintenance,511
http://statistics.data.gov.uk/id/local-authority/12UE,Huntingdonshire District Council,08/08/2016,192130,153578,5,120,Lead Forensics,CR423143,One Leisure St Neots,Advertising/Promoting Services,255
http://statistics.data.gov.uk/id/local-authority/12UE,Huntingdonshire District Council,25/08/2016,192705,190237,5,480,Gb Group Plc,CR455456,One Leisure St Neots,Software,206
http://statistics.data.gov.uk/id/local-authority/12UE,Huntingdonshire District Council,04/08/2016,193421,123913345,5,"1,958.47",Anglian Water,CR000071,One Leisure St Neots,Water & Sewerage,432
http://statistics.data.gov.uk/id/local-authority/12UE,Huntingdonshire District Council,04/08/2016,193484,123913345,5,"1,012.60",Anglian Water,CR000071,One Leisure St Neots,Water & Sewerage,432
http://statistics.data.gov.uk/id/local-authority/12UE,Huntingdonshire District Council,11/08/2016,194062,4203058215,5,259.2,Glaxosmithkline,CR010424,One Leisure St Neots,Vending Materials,560
http://statistics.data.gov.uk/id/local-authority/12UE,Huntingdonshire District Council,25/08/2016,194127,9052652474,5,473.88,Royal Mail,CR027083,One Leisure St Neots,Postage,231
http://statistics.data.gov.uk/id/local-authority/12UE,Huntingdonshire District Council,18/08/2016,194305,12489088380,5,"2,263.07",E-On Energy,CR416430,One Leisure St Neots,Gas,421
http://statistics.data.gov.uk/id/local-authority/12UE,Huntingdonshire District Council,08/08/2016,193227,678/ONE,5,86.4,Term Times,CR423394,One Leisure St Neots,Advertising/Promoting Services,255
http://statistics.data.gov.uk/id/local-authority/12UE,Huntingdonshire District Council,04/08/2016,193176,BD857175,5,45.8,Purchase Power,CR033202,One Leisure St Neots,Postage,231
http://statistics.data.gov.uk/id/local-authority/12UE,Huntingdonshire District Council,04/08/2016,192134,GM13887,5,281.08,Garner Medical Ltd,CR003972,One Leisure St Neots,Equipment Maintenance,511
http://statistics.data.gov.uk/id/local-authority/12UE,Huntingdonshire District Council,25/08/2016,193561,SBO1044158,5,388.3,Veolia Es Uk Ltd,CR478889,One Leisure St Neots,Waste Disposal,763
http://statistics.data.gov.uk/id/local-authority/12UE,Huntingdonshire District Council,08/08/2016,192943,SI351486-1,5,990,Rlss Uk Enterprises Ltd - Lifesavers Direct,CR401615,One Leisure St Neots,Equipment,500
http://statistics.data.gov.uk/id/local-authority/12UE,Huntingdonshire District Council,04/08/2016,193603,16903,5,"1,433.70",Soft Surfaces,CR415861,Parks & Open Spaces,Playground Equipment,360
http://statistics.data.gov.uk/id/local-authority/12UE,Huntingdonshire District Council,25/08/2016,193602,16993,5,"1,433.70",Soft Surfaces,CR415861,Parks & Open Spaces,Playground Equipment,360
http://statistics.data.gov.uk/id/local-authority/12UE,Huntingdonshire District Council,25/08/2016,194417,118147628,5,416.37,Anglian Water,CR000071,Parks & Open Spaces,Water & Sewerage,432
http://statistics.data.gov.uk/id/local-authority/12UE,Huntingdonshire District Council,15/08/2016,193926,CD200013996,5,35.26,Integrated Water Services Ltd,CR452140,Parks & Open Spaces,Water & Sewerage,432
http://statistics.data.gov.uk/id/local-authority/12UE,Huntingdonshire District Council,15/08/2016,193926,CD200013996,5,51.6,Integrated Water Services Ltd,CR452140,Parks & Open Spaces,Water & Sewerage,432
http://statistics.data.gov.uk/id/local-authority/12UE,Huntingdonshire District Council,15/08/2016,193926,CD200013996,5,32.89,Integrated Water Services Ltd,CR452140,Parks & Open Spaces,Water & Sewerage,432
http://statistics.data.gov.uk/id/local-authority/12UE,Huntingdonshire District Council,15/08/2016,193926,CD200013996,5,42.3,Integrated Water Services Ltd,CR452140,Parks & Open Spaces,Water & Sewerage,432
http://statistics.data.gov.uk/id/local-authority/12UE,Huntingdonshire District Council,08/08/2016,193366,20319,5,266.4,Bh Doors & Engineering Ltd,CR455707,Pathfinder House Site,Building Mtce,303
http://statistics.data.gov.uk/id/local-authority/12UE,Huntingdonshire District Council,18/08/2016,194148,20409,5,345.79,Bh Doors & Engineering Ltd,CR455707,Pathfinder House Site,Building Mtce,303
http://statistics.data.gov.uk/id/local-authority/12UE,Huntingdonshire District Council,18/08/2016,193296,27596,5,"3,147.00",Hygiene Solutions,CR477443,Pathfinder House Site,Building Mtce,303
http://statistics.data.gov.uk/id/local-authority/12UE,Huntingdonshire District Council,11/08/2016,193131,41439,5,342,Dal-Rod (Camridgeshire),CR413675,Pathfinder House Site,Building Mtce,303
http://statistics.data.gov.uk/id/local-authority/12UE,Huntingdonshire District Council,04/08/2016,192635,56226,5,"1,066.63",Maskearaid Ind Supplies,CR033423,Pathfinder House Site,Building Mtce,303
http://statistics.data.gov.uk/id/local-authority/12UE,Huntingdonshire District Council,18/08/2016,194313,65912,5,"10,119.13",Haven Power Ltd,CR455940,Pathfinder House Site,Electricity,420
http://statistics.data.gov.uk/id/local-authority/12UE,Huntingdonshire District Council,18/08/2016,194313,65912,5,150,Haven Power Ltd,CR455940,Pathfinder House Site,Electricity,420
http://statistics.data.gov.uk/id/local-authority/12UE,Huntingdonshire District Council,18/08/2016,193661,532317,5,"6,246.97",Zip Heaters Uk Ltd,CR478275,Pathfinder House Site,Plant & Equipment Maintenance,380
http://statistics.data.gov.uk/id/local-authority/12UE,Huntingdonshire District Council,15/08/2016,194126,1020442,5,643.8,Brookes,CR422866,Pathfinder House Site,Catering,710
http://statistics.data.gov.uk/id/local-authority/12UE,Huntingdonshire District Council,04/08/2016,192452,113094790,5,"1,395.00",Kone Lifts Ltd,CR000483,Pathfinder House Site,Plant & Equipment Maintenance,380
http://statistics.data.gov.uk/id/local-authority/12UE,Huntingdonshire District Council,04/08/2016,193427,134364421,5,980.97,Anglian Water,CR000071,Pathfinder House Site,Water & Sewerage,432
http://statistics.data.gov.uk/id/local-authority/12UE,Huntingdonshire District Council,18/08/2016,194239,13313569100,5,386.85,E-On Energy,CR416430,Pathfinder House Site,Electricity,420
http://statistics.data.gov.uk/id/local-authority/12UE,Huntingdonshire District Council,15/08/2016,193926,CD200013996,5,73.5,Integrated Water Services Ltd,CR452140,Pathfinder House Site,Water & Sewerage,432
http://statistics.data.gov.uk/id/local-authority/12UE,Huntingdonshire District Council,18/08/2016,193187,CD970036791,5,"1,225.36",Omega Red Group,CR411029,Pathfinder House Site,Building Mtce,303
http://statistics.data.gov.uk/id/local-authority/12UE,Huntingdonshire District Council,08/08/2016,193370,S3082659,5,799.2,First In Service Ltd,CR422285,Pathfinder House Site,Plant & Equipment Maintenance,380
http://statistics.data.gov.uk/id/local-authority/12UE,Huntingdonshire District Council,25/08/2016,193486,S3083286,5,"2,288.40",First In Service Ltd,CR422285,Pathfinder House Site,Plant & Equipment Maintenance,380
http://statistics.data.gov.uk/id/local-authority/12UE,Huntingdonshire District Council,18/08/2016,194504,,5,"1,283.52",Glasdon Uk Ltd,CR002827,Pathfinder House Site,Refuse Sacks,552
http://statistics.data.gov.uk/id/local-authority/12UE,Huntingdonshire District Council,15/08/2016,193994,JBC/28308/4663,5,"60,050.72",J Breheny Contractors Ltd,CR000314,Phoenix Court Roof Enhancement,Consultants,711
http://statistics.data.gov.uk/id/local-authority/12UE,Huntingdonshire District Council,04/08/2016,193601,1318,5,275,Planning Officers Society,CR477409,Planning M U'S,Professional Subscriptions,755
http://statistics.data.gov.uk/id/local-authority/12UE,Huntingdonshire District Council,15/08/2016,194202,04-May-16,5,"2,200.00",Tree Officer Outsourcing Uk Ltd,CR423131,Planning M U'S,Hired Staff,100
http://statistics.data.gov.uk/id/local-authority/12UE,Huntingdonshire District Council,15/08/2016,194235,11-Jul-16,5,"2,255.00",Tree Officer Outsourcing Uk Ltd,CR423131,Planning M U'S,Hired Staff,100
http://statistics.data.gov.uk/id/local-authority/12UE,Huntingdonshire District Council,25/08/2016,193837,50066573,5,756,Haymarket Media Group Ltd,CR479500,Planning M U'S,Recruitment Costs,120
http://statistics.data.gov.uk/id/local-authority/12UE,Huntingdonshire District Council,18/08/2016,194125,1006770017,5,"3,000.00",Hays,CR423917,Property Development And Mgt,Recruitment Costs,120
http://statistics.data.gov.uk/id/local-authority/12UE,Huntingdonshire District Council,18/08/2016,191601,HDC044,5,"2,844.00",Cfl Estate Services,CR455208,Property Development And Mgt,Consultants,711
http://statistics.data.gov.uk/id/local-authority/12UE,Huntingdonshire District Council,18/08/2016,194382,HDC048,5,"3,060.00",Cfl Estate Services,CR455208,Property Development And Mgt,Consultants,711
http://statistics.data.gov.uk/id/local-authority/12UE,Huntingdonshire District Council,18/08/2016,194381,HDC049,5,"2,791.35",Cfl Estate Services,CR455208,Property Development And Mgt,Consultants,711
http://statistics.data.gov.uk/id/local-authority/12UE,Huntingdonshire District Council,04/08/2016,193666,41308,5,652.8,Dal-Rod (Camridgeshire),CR413675,Public Conveniences,Building Mtce,303
http://statistics.data.gov.uk/id/local-authority/12UE,Huntingdonshire District Council,04/08/2016,193365,548709,5,298.68,Ecocleen Services Limited,CR406985,Public Conveniences,Building Mtce,303
http://statistics.data.gov.uk/id/local-authority/12UE,Huntingdonshire District Council,04/08/2016,193364,551133,5,731.68,Ecocleen Services Limited,CR406985,Public Conveniences,Building Cleaning,440
http://statistics.data.gov.uk/id/local-authority/12UE,Huntingdonshire District Council,11/08/2016,194137,INV458709,5,298.68,Ecocleen Services Limited,CR406985,Public Conveniences,Building Mtce,303
http://statistics.data.gov.uk/id/local-authority/12UE,Huntingdonshire District Council,25/08/2016,194430,INV552044,5,731.68,Ecocleen Services Limited,CR406985,Public Conveniences,Building Mtce,303
http://statistics.data.gov.uk/id/local-authority/12UE,Huntingdonshire District Council,18/08/2016,193658,120442,5,318,Rvs Group Ltd,CR480777,Ramsey Neighbourhood,Advertising/Promoting Services,255
http://statistics.data.gov.uk/id/local-authority/12UE,Huntingdonshire District Council,11/08/2016,193235,188589,5,126,Barton Petroleum,CR409205,Recycling,Vehicle Oil & Lubricants,626
http://statistics.data.gov.uk/id/local-authority/12UE,Huntingdonshire District Council,04/08/2016,193617,96329119,5,285.05,Terberg Matec Uk Ltd,CR402183,Recycling,Vehicle Parts & Fittings,625
http://statistics.data.gov.uk/id/local-authority/12UE,Huntingdonshire District Council,25/08/2016,194866,96329954,5,212.27,Terberg Matec Uk Ltd,CR402183,Recycling,Vehicle Parts & Fittings,625
http://statistics.data.gov.uk/id/local-authority/12UE,Huntingdonshire District Council,11/08/2016,193591,DE10966993,5,139.47,Dennis Eagle Ltd,CR000200,Recycling,Vehicle Parts & Fittings,625
http://statistics.data.gov.uk/id/local-authority/12UE,Huntingdonshire District Council,11/08/2016,193591,DE10966993,5,19.07,Dennis Eagle Ltd,CR000200,Recycling,Vehicle Parts & Fittings,625
http://statistics.data.gov.uk/id/local-authority/12UE,Huntingdonshire District Council,15/08/2016,193123,DE10967788,5,248.25,Dennis Eagle Ltd,CR000200,Recycling,Vehicle Parts & Fittings,625
http://statistics.data.gov.uk/id/local-authority/12UE,Huntingdonshire District Council,15/08/2016,193077,I33338 TO 30/6,5,79.8,Zurich Municipal,CR003638,Recycling,Insurance Excess,797
http://statistics.data.gov.uk/id/local-authority/12UE,Huntingdonshire District Council,04/08/2016,193607,IN0526329,5,"1,822.06",Staffline Group,CR416827,Recycling,Hired Staff,100
http://statistics.data.gov.uk/id/local-authority/12UE,Huntingdonshire District Council,04/08/2016,193608,IN0527731,5,"1,054.92",Staffline Group,CR416827,Recycling,Hired Staff,100
http://statistics.data.gov.uk/id/local-authority/12UE,Huntingdonshire District Council,04/08/2016,193609,IN0529950,5,"1,719.41",Staffline Group,CR416827,Recycling,Hired Staff,100
http://statistics.data.gov.uk/id/local-authority/12UE,Huntingdonshire District Council,11/08/2016,194039,IN0531540,5,"2,671.26",Staffline Group,CR416827,Recycling,Hired Staff,100
http://statistics.data.gov.uk/id/local-authority/12UE,Huntingdonshire District Council,18/08/2016,194081,IN0532860,5,"2,246.09",Staffline Group,CR416827,Recycling,Hired Staff,100
http://statistics.data.gov.uk/id/local-authority/12UE,Huntingdonshire District Council,25/08/2016,194089,IN0534547,5,"2,517.17",Staffline Group,CR416827,Recycling,Hired Staff,100
http://statistics.data.gov.uk/id/local-authority/12UE,Huntingdonshire District Council,25/08/2016,194673,670825,5,192,Callcredit Ltd,CR455548,Revenue Services Mus,Enquiries,723
http://statistics.data.gov.uk/id/local-authority/12UE,Huntingdonshire District Council,25/08/2016,194806,IEG4001328,5,"33,649.20",Ieg4 Limited,CR453919,Software Capital,Software,206
http://statistics.data.gov.uk/id/local-authority/12UE,Huntingdonshire District Council,15/08/2016,193115,173968,5,623.34,The Bell Brush Company,CR423411,Street Cleaning,Equipment,500
http://statistics.data.gov.uk/id/local-authority/12UE,Huntingdonshire District Council,04/08/2016,192901,58381853,5,396.64,Marshall Motor Group Ltd,CR009641,Street Cleaning,Vehicle Parts & Fittings,625
http://statistics.data.gov.uk/id/local-authority/12UE,Huntingdonshire District Council,04/08/2016,192900,58381866,5,415.78,Marshall Motor Group Ltd,CR009641,Street Cleaning,Vehicle Parts & Fittings,625
http://statistics.data.gov.uk/id/local-authority/12UE,Huntingdonshire District Council,04/08/2016,192807,1607/32755,5,714,Gullivers Truck Hire Ltd,CR477663,Street Cleaning,Vehicle Hire,607
http://statistics.data.gov.uk/id/local-authority/12UE,Huntingdonshire District Council,11/08/2016,193527,1607/35570,5,714,Gullivers Truck Hire Ltd,CR477663,Street Cleaning,Vehicle Hire,607
http://statistics.data.gov.uk/id/local-authority/12UE,Huntingdonshire District Council,18/08/2016,194074,1607/37549,5,714,Gullivers Truck Hire Ltd,CR477663,Street Cleaning,Vehicle Hire,607
http://statistics.data.gov.uk/id/local-authority/12UE,Huntingdonshire District Council,11/08/2016,193506,4/26308,5,135.91,D H M Truck & Tachograph Centr,CR032254,Street Cleaning,Vehicle Parts & Fittings,625
http://statistics.data.gov.uk/id/local-authority/12UE,Huntingdonshire District Council,04/08/2016,193613,IN0526332,5,"1,178.84",Staffline Group,CR416827,Street Cleaning,Hired Staff,100
http://statistics.data.gov.uk/id/local-authority/12UE,Huntingdonshire District Council,04/08/2016,193614,IN0527734,5,"1,186.49",Staffline Group,CR416827,Street Cleaning,Hired Staff,100
http://statistics.data.gov.uk/id/local-authority/12UE,Huntingdonshire District Council,04/08/2016,193615,IN0529953,5,"1,178.84",Staffline Group,CR416827,Street Cleaning,Hired Staff,100
http://statistics.data.gov.uk/id/local-authority/12UE,Huntingdonshire District Council,11/08/2016,194040,IN0531543,5,"1,271.46",Staffline Group,CR416827,Street Cleaning,Hired Staff,100
http://statistics.data.gov.uk/id/local-authority/12UE,Huntingdonshire District Council,18/08/2016,194071,IN0532863,5,"1,685.81",Staffline Group,CR416827,Street Cleaning,Hired Staff,100
http://statistics.data.gov.uk/id/local-authority/12UE,Huntingdonshire District Council,25/08/2016,194070,IN0534550,5,"1,722.98",Staffline Group,CR416827,Street Cleaning,Hired Staff,100
http://statistics.data.gov.uk/id/local-authority/12UE,Huntingdonshire District Council,25/08/2016,194894,10686886,5,"3,484.52",Cambridgeshire County Council,CR006678,Trade Refuse,Waste Disposal,763
